Workbook

Sheet Sheet1

Sheet Sheet2
A1: vkgj.k ,oa forj.k vf/kdkjh dk;kZy;↓
A2: iz/kkukpk;Z de ihbZbZvks] jktdh; mPp ek/;fed fon~;ky; ekywrkuk ¼Fkkukxkth½ vyoj
A3: lkef;d osru o`f) o"kZ↓
A4: 2024
A5: Lohd`rh vkns'k Øekad↓
A6: 2001
A7: Lohd`rh vkns'k fnukad↓
A8: 2024-07-15
A9: Ø- la- | B9: uke deZpkjh | C9: in uke | D9: inLFkkiu LFkku | E9: ="30-06-"&A4&" dks izkIr osru" -> 30-06-2024 dks izkIr osru | G9: osru o`f) fnukad | H9: fo'ks"k fooj.k
E10: is&ysoy | F10: osru
A11: 1 | B11: izeksn dqekj lSuh | C11: v/;kid | D11: jkmekfo ekywrkuk | E11: ,y & 11 | F11: 50800 | G11: 2025-01-01
A12: 2
A13: 3
A14: 4
A15: 5
A16: 6
A17: 7
A18: 8 | B18: izeksn dqekj lSuh | C18: v/;kid | D18: jkmekfo ekywrkuk | E18: ,y & 11 | F18: 49300 | G18: 2024-07-01
A19: 9
A20: 10
A21: 11
A22: 12
A23: 13
A24: 14
A25: 15
A26: 16
A27: 17
A28: 18
A29: 19
A30: 20
A31: 21
A32: 22
A33: 23
A34: 24
A35: 25
A36: 26
A37: 27
A38: 28
A39: 29
A40: 30
A41: 31
A42: 32
A43: 33
A44: 34
A45: 35
A46: 36
A47: 37
A48: 38
A49: 39
A50: 40
A51: 41
A52: 42
A53: 43
A54: 44
A55: 45
A56: 46
A57: 47
A58: 48
A59: 49
A60: 50

Sheet Sheet3
A1: ="dk;kZy; "&Sheet2!A2 -> dk;kZy; iz/kkukpk;Z de ihbZbZvks] jktdh; mPp ek/;fed fon~;ky; ekywrkuk ¼Fkkukxkth½ vyoj
A2: ="dzekad % "&Sheet2!A6 -> dzekad % 2001 | H2: ="fnukad % "&TEXT(Sheet2!A8,"DD-MM-YYYY") -> fnukad % 15-07-2024
A3: % lkef;d osru o`f) vkns'k %
A5: jkT; ljdkj ds foÙk foHkkx ds vkns'k dzekad ,Q-15¼1½,QMh¼#Yl½@2017 t;iqj fnukad 30-10-2017 o f}rh; la'kks/ku fnukad 09-12-2017 ds izko/kkuksa ds vuqlj.k esa bl dk;kZy; ds v/khu dk;Zjr fuEukafdr LFkkbZ deZpkfj;ksa dks muds }kjk ,d o"kZ dh larks"ktud lsok iw.kZ djus ij muds uke ds laeq[k vafdr dkWye 5 dh fnukad ls okf"kZd osru o`f) dkWye la[;ka 6 ds vuqlkj Lohd`r dh tkdj rn~ vuqlkj osru ,oa HkÙks vkgfjr fd;s tkus dh Lohd`rh iznku dh tkrh gSA
A6: Ø- la- | B6: uke deZpkjh] in uke ,oa inLFkkiu LFkku | C6: =Sheet2!E9 -> 30-06-2024 dks izkIr osru | E6: osru o`f) fnukad | F6: osru o`f) Ik'pkr~ osru | G6: vkxkeh osru o`f) fnukad | H6: fo'ks"k fooj.k
C7: is&ysoy | D7: ewy osru
A8: 1 | B8: 2 | C8: 3 | D8: 4 | E8: 5 | F8: 6 | G8: 7 | H8: 8
A9: =IF(OR(OR(OR(B9="",C9="",D9="",E9=""))),"",1) -> 1 | B9: =Sheet2!B11&"] "&Sheet2!C11&"] "&Sheet2!D11 -> izeksn dqekj lSuh] v/;kid] jkmekfo ekywrkuk | C9: =IF(Sheet2!E11="","",Sheet2!E11) -> ,y & 11 | D9: =IF(Sheet2!F11="","",Sheet2!F11) -> 50800 | E9: =IF(Sheet2!G11="","",TEXT(Sheet2!G11,"D-M-YYYY")) -> 1-1-2025 | F9: =IFERROR(MROUND(D9*103%,100),"") -> 52300 | G9: =IFERROR("1-"&MONTH(E9)&"-"&YEAR(E9)+1,"") -> 1-1-2026 | H9: =IF(Sheet2!H11="","",Sheet2!H11) -> 
A10: =IF(OR(OR(OR(B10="",C10="",D10="",E10=""))),"",MAX($A$9:A9)+1) ->  | B10: =Sheet2!B12&"] "&Sheet2!C12&"] "&Sheet2!D12 -> ] ] | C10: =IF(Sheet2!E12="","",Sheet2!E12) ->  | D10: =IF(Sheet2!F12="","",Sheet2!F12) ->  | E10: =IF(Sheet2!G12="","",TEXT(Sheet2!G12,"D-M-YYYY")) ->  | F10: =IFERROR(MROUND(D10*103%,100),"") ->  | G10: =IFERROR("1-"&MONTH(E10)&"-"&YEAR(E10)+1,"") ->  | H10: =IF(Sheet2!H12="","",Sheet2!H12) -> 
A11: =IF(OR(OR(OR(B11="",C11="",D11="",E11=""))),"",MAX($A$9:A10)+1) ->  | B11: =Sheet2!B13&"] "&Sheet2!C13&"] "&Sheet2!D13 -> ] ] | C11: =IF(Sheet2!E13="","",Sheet2!E13) ->  | D11: =IF(Sheet2!F13="","",Sheet2!F13) ->  | E11: =IF(Sheet2!G13="","",TEXT(Sheet2!G13,"D-M-YYYY")) ->  | H11: =IF(Sheet2!H13="","",Sheet2!H13) -> 
A12: =IF(OR(OR(OR(B12="",C12="",D12="",E12=""))),"",MAX($A$9:A11)+1) ->  | B12: =Sheet2!B14&"] "&Sheet2!C14&"] "&Sheet2!D14 -> ] ] | C12: =IF(Sheet2!E14="","",Sheet2!E14) ->  | D12: =IF(Sheet2!F14="","",Sheet2!F14) ->  | E12: =IF(Sheet2!G14="","",TEXT(Sheet2!G14,"D-M-YYYY")) ->  | H12: =IF(Sheet2!H14="","",Sheet2!H14) -> 
A13: =IF(OR(OR(OR(B13="",C13="",D13="",E13=""))),"",MAX($A$9:A12)+1) ->  | B13: =Sheet2!B15&"] "&Sheet2!C15&"] "&Sheet2!D15 -> ] ] | C13: =IF(Sheet2!E15="","",Sheet2!E15) ->  | D13: =IF(Sheet2!F15="","",Sheet2!F15) ->  | E13: =IF(Sheet2!G15="","",TEXT(Sheet2!G15,"D-M-YYYY")) ->  | H13: =IF(Sheet2!H15="","",Sheet2!H15) -> 
A14: =IF(OR(OR(OR(B14="",C14="",D14="",E14=""))),"",MAX($A$9:A13)+1) ->  | B14: =Sheet2!B16&"] "&Sheet2!C16&"] "&Sheet2!D16 -> ] ] | C14: =IF(Sheet2!E16="","",Sheet2!E16) ->  | D14: =IF(Sheet2!F16="","",Sheet2!F16) ->  | E14: =IF(Sheet2!G16="","",TEXT(Sheet2!G16,"D-M-YYYY")) ->  | H14: =IF(Sheet2!H16="","",Sheet2!H16) -> 
A15: =IF(OR(OR(OR(B15="",C15="",D15="",E15=""))),"",MAX($A$9:A14)+1) ->  | B15: =Sheet2!B17&"] "&Sheet2!C17&"] "&Sheet2!D17 -> ] ] | C15: =IF(Sheet2!E17="","",Sheet2!E17) ->  | D15: =IF(Sheet2!F17="","",Sheet2!F17) ->  | E15: =IF(Sheet2!G17="","",TEXT(Sheet2!G17,"D-M-YYYY")) ->  | H15: =IF(Sheet2!H17="","",Sheet2!H17) -> 
A16: =IF(OR(OR(OR(B16="",C16="",D16="",E16=""))),"",MAX($A$9:A15)+1) -> 2 | B16: =Sheet2!B18&"] "&Sheet2!C18&"] "&Sheet2!D18 -> izeksn dqekj lSuh] v/;kid] jkmekfo ekywrkuk | C16: =IF(Sheet2!E18="","",Sheet2!E18) -> ,y & 11 | D16: =IF(Sheet2!F18="","",Sheet2!F18) -> 49300 | E16: =IF(Sheet2!G18="","",TEXT(Sheet2!G18,"D-M-YYYY")) -> 1-7-2024 | F16: 50800 | G16: =IFERROR("1-"&MONTH(E16)&"-"&YEAR(E16)+1,"") -> 1-7-2025 | H16: =IF(Sheet2!H18="","",Sheet2!H18) -> 
A17: =IF(OR(OR(OR(B17="",C17="",D17="",E17=""))),"",MAX($A$9:A16)+1) ->  | B17: =Sheet2!B19&"] "&Sheet2!C19&"] "&Sheet2!D19 -> ] ] | C17: =IF(Sheet2!E19="","",Sheet2!E19) ->  | D17: =IF(Sheet2!F19="","",Sheet2!F19) ->  | E17: =IF(Sheet2!G19="","",TEXT(Sheet2!G19,"D-M-YYYY")) ->  | H17: =IF(Sheet2!H19="","",Sheet2!H19) -> 
A18: =IF(OR(OR(OR(B18="",C18="",D18="",E18=""))),"",MAX($A$9:A17)+1) ->  | B18: =Sheet2!B20&"] "&Sheet2!C20&"] "&Sheet2!D20 -> ] ] | C18: =IF(Sheet2!E20="","",Sheet2!E20) ->  | D18: =IF(Sheet2!F20="","",Sheet2!F20) ->  | E18: =IF(Sheet2!G20="","",TEXT(Sheet2!G20,"D-M-YYYY")) ->  | H18: =IF(Sheet2!H20="","",Sheet2!H20) -> 
A19: =IF(OR(OR(OR(B19="",C19="",D19="",E19=""))),"",MAX($A$9:A18)+1) ->  | B19: =Sheet2!B21&"] "&Sheet2!C21&"] "&Sheet2!D21 -> ] ] | C19: =IF(Sheet2!E21="","",Sheet2!E21) ->  | D19: =IF(Sheet2!F21="","",Sheet2!F21) ->  | E19: =IF(Sheet2!G21="","",TEXT(Sheet2!G21,"D-M-YYYY")) ->  | H19: =IF(Sheet2!H21="","",Sheet2!H21) -> 
A20: =IF(OR(OR(OR(B20="",C20="",D20="",E20=""))),"",MAX($A$9:A19)+1) ->  | B20: =Sheet2!B22&"] "&Sheet2!C22&"] "&Sheet2!D22 -> ] ] | C20: =IF(Sheet2!E22="","",Sheet2!E22) ->  | D20: =IF(Sheet2!F22="","",Sheet2!F22) ->  | E20: =IF(Sheet2!G22="","",TEXT(Sheet2!G22,"D-M-YYYY")) ->  | H20: =IF(Sheet2!H22="","",Sheet2!H22) -> 
A21: =IF(OR(OR(OR(B21="",C21="",D21="",E21=""))),"",MAX($A$9:A20)+1) ->  | B21: =Sheet2!B23&"] "&Sheet2!C23&"] "&Sheet2!D23 -> ] ] | C21: =IF(Sheet2!E23="","",Sheet2!E23) ->  | D21: =IF(Sheet2!F23="","",Sheet2!F23) ->  | E21: =IF(Sheet2!G23="","",TEXT(Sheet2!G23,"D-M-YYYY")) ->  | H21: =IF(Sheet2!H23="","",Sheet2!H23) -> 
A22: =IF(OR(OR(OR(B22="",C22="",D22="",E22=""))),"",MAX($A$9:A21)+1) ->  | B22: =Sheet2!B24&"] "&Sheet2!C24&"] "&Sheet2!D24 -> ] ] | C22: =IF(Sheet2!E24="","",Sheet2!E24) ->  | D22: =IF(Sheet2!F24="","",Sheet2!F24) ->  | E22: =IF(Sheet2!G24="","",TEXT(Sheet2!G24,"D-M-YYYY")) ->  | H22: =IF(Sheet2!H24="","",Sheet2!H24) -> 
A23: =IF(OR(OR(OR(B23="",C23="",D23="",E23=""))),"",MAX($A$9:A22)+1) ->  | B23: =Sheet2!B25&"] "&Sheet2!C25&"] "&Sheet2!D25 -> ] ] | C23: =IF(Sheet2!E25="","",Sheet2!E25) ->  | D23: =IF(Sheet2!F25="","",Sheet2!F25) ->  | E23: =IF(Sheet2!G25="","",TEXT(Sheet2!G25,"D-M-YYYY")) ->  | H23: =IF(Sheet2!H25="","",Sheet2!H25) -> 
A24: =IF(OR(OR(OR(B24="",C24="",D24="",E24=""))),"",MAX($A$9:A23)+1) ->  | B24: =Sheet2!B26&"] "&Sheet2!C26&"] "&Sheet2!D26 -> ] ] | C24: =IF(Sheet2!E26="","",Sheet2!E26) ->  | D24: =IF(Sheet2!F26="","",Sheet2!F26) ->  | E24: =IF(Sheet2!G26="","",TEXT(Sheet2!G26,"D-M-YYYY")) ->  | H24: =IF(Sheet2!H26="","",Sheet2!H26) -> 
A25: =IF(OR(OR(OR(B25="",C25="",D25="",E25=""))),"",MAX($A$9:A24)+1) ->  | B25: =Sheet2!B27&"] "&Sheet2!C27&"] "&Sheet2!D27 -> ] ] | C25: =IF(Sheet2!E27="","",Sheet2!E27) ->  | D25: =IF(Sheet2!F27="","",Sheet2!F27) ->  | E25: =IF(Sheet2!G27="","",TEXT(Sheet2!G27,"D-M-YYYY")) ->  | H25: =IF(Sheet2!H27="","",Sheet2!H27) -> 
A26: =IF(OR(OR(OR(B26="",C26="",D26="",E26=""))),"",MAX($A$9:A25)+1) ->  | B26: =Sheet2!B28&"] "&Sheet2!C28&"] "&Sheet2!D28 -> ] ] | C26: =IF(Sheet2!E28="","",Sheet2!E28) ->  | D26: =IF(Sheet2!F28="","",Sheet2!F28) ->  | E26: =IF(Sheet2!G28="","",TEXT(Sheet2!G28,"D-M-YYYY")) ->  | H26: =IF(Sheet2!H28="","",Sheet2!H28) -> 
A27: =IF(OR(OR(OR(B27="",C27="",D27="",E27=""))),"",MAX($A$9:A26)+1) ->  | B27: =Sheet2!B29&"] "&Sheet2!C29&"] "&Sheet2!D29 -> ] ] | C27: =IF(Sheet2!E29="","",Sheet2!E29) ->  | D27: =IF(Sheet2!F29="","",Sheet2!F29) ->  | E27: =IF(Sheet2!G29="","",TEXT(Sheet2!G29,"D-M-YYYY")) ->  | H27: =IF(Sheet2!H29="","",Sheet2!H29) -> 
A28: =IF(OR(OR(OR(B28="",C28="",D28="",E28=""))),"",MAX($A$9:A27)+1) ->  | B28: =Sheet2!B30&"] "&Sheet2!C30&"] "&Sheet2!D30 -> ] ] | C28: =IF(Sheet2!E30="","",Sheet2!E30) ->  | D28: =IF(Sheet2!F30="","",Sheet2!F30) ->  | E28: =IF(Sheet2!G30="","",TEXT(Sheet2!G30,"D-M-YYYY")) ->  | H28: =IF(Sheet2!H30="","",Sheet2!H30) -> 
A29: =IF(OR(OR(OR(B29="",C29="",D29="",E29=""))),"",MAX($A$9:A28)+1) ->  | B29: =Sheet2!B31&"] "&Sheet2!C31&"] "&Sheet2!D31 -> ] ] | C29: =IF(Sheet2!E31="","",Sheet2!E31) ->  | D29: =IF(Sheet2!F31="","",Sheet2!F31) ->  | E29: =IF(Sheet2!G31="","",TEXT(Sheet2!G31,"D-M-YYYY")) ->  | H29: =IF(Sheet2!H31="","",Sheet2!H31) -> 
A30: =IF(OR(OR(OR(B30="",C30="",D30="",E30=""))),"",MAX($A$9:A29)+1) ->  | B30: =Sheet2!B32&"] "&Sheet2!C32&"] "&Sheet2!D32 -> ] ] | C30: =IF(Sheet2!E32="","",Sheet2!E32) ->  | D30: =IF(Sheet2!F32="","",Sheet2!F32) ->  | E30: =IF(Sheet2!G32="","",TEXT(Sheet2!G32,"D-M-YYYY")) ->  | H30: =IF(Sheet2!H32="","",Sheet2!H32) -> 
A31: =IF(OR(OR(OR(B31="",C31="",D31="",E31=""))),"",MAX($A$9:A30)+1) ->  | B31: =Sheet2!B33&"] "&Sheet2!C33&"] "&Sheet2!D33 -> ] ] | C31: =IF(Sheet2!E33="","",Sheet2!E33) ->  | D31: =IF(Sheet2!F33="","",Sheet2!F33) ->  | E31: =IF(Sheet2!G33="","",TEXT(Sheet2!G33,"D-M-YYYY")) ->  | H31: =IF(Sheet2!H33="","",Sheet2!H33) -> 
A32: =IF(OR(OR(OR(B32="",C32="",D32="",E32=""))),"",MAX($A$9:A31)+1) ->  | B32: =Sheet2!B34&"] "&Sheet2!C34&"] "&Sheet2!D34 -> ] ] | C32: =IF(Sheet2!E34="","",Sheet2!E34) ->  | D32: =IF(Sheet2!F34="","",Sheet2!F34) ->  | E32: =IF(Sheet2!G34="","",TEXT(Sheet2!G34,"D-M-YYYY")) ->  | H32: =IF(Sheet2!H34="","",Sheet2!H34) -> 
A33: =IF(OR(OR(OR(B33="",C33="",D33="",E33=""))),"",MAX($A$9:A32)+1) ->  | B33: =Sheet2!B35&"] "&Sheet2!C35&"] "&Sheet2!D35 -> ] ] | C33: =IF(Sheet2!E35="","",Sheet2!E35) ->  | D33: =IF(Sheet2!F35="","",Sheet2!F35) ->  | E33: =IF(Sheet2!G35="","",TEXT(Sheet2!G35,"D-M-YYYY")) ->  | H33: =IF(Sheet2!H35="","",Sheet2!H35) -> 
A34: =IF(OR(OR(OR(B34="",C34="",D34="",E34=""))),"",MAX($A$9:A33)+1) ->  | B34: =Sheet2!B36&"] "&Sheet2!C36&"] "&Sheet2!D36 -> ] ] | C34: =IF(Sheet2!E36="","",Sheet2!E36) ->  | D34: =IF(Sheet2!F36="","",Sheet2!F36) ->  | E34: =IF(Sheet2!G36="","",TEXT(Sheet2!G36,"D-M-YYYY")) ->  | H34: =IF(Sheet2!H36="","",Sheet2!H36) -> 
A35: =IF(OR(OR(OR(B35="",C35="",D35="",E35=""))),"",MAX($A$9:A34)+1) ->  | B35: =Sheet2!B37&"] "&Sheet2!C37&"] "&Sheet2!D37 -> ] ] | C35: =IF(Sheet2!E37="","",Sheet2!E37) ->  | D35: =IF(Sheet2!F37="","",Sheet2!F37) ->  | E35: =IF(Sheet2!G37="","",TEXT(Sheet2!G37,"D-M-YYYY")) ->  | H35: =IF(Sheet2!H37="","",Sheet2!H37) -> 
A36: =IF(OR(OR(OR(B36="",C36="",D36="",E36=""))),"",MAX($A$9:A35)+1) ->  | B36: =Sheet2!B38&"] "&Sheet2!C38&"] "&Sheet2!D38 -> ] ] | C36: =IF(Sheet2!E38="","",Sheet2!E38) ->  | D36: =IF(Sheet2!F38="","",Sheet2!F38) ->  | E36: =IF(Sheet2!G38="","",TEXT(Sheet2!G38,"D-M-YYYY")) ->  | H36: =IF(Sheet2!H38="","",Sheet2!H38) -> 
A37: =IF(OR(OR(OR(B37="",C37="",D37="",E37=""))),"",MAX($A$9:A36)+1) ->  | B37: =Sheet2!B39&"] "&Sheet2!C39&"] "&Sheet2!D39 -> ] ] | C37: =IF(Sheet2!E39="","",Sheet2!E39) ->  | D37: =IF(Sheet2!F39="","",Sheet2!F39) ->  | E37: =IF(Sheet2!G39="","",TEXT(Sheet2!G39,"D-M-YYYY")) ->  | H37: =IF(Sheet2!H39="","",Sheet2!H39) -> 
A38: =IF(OR(OR(OR(B38="",C38="",D38="",E38=""))),"",MAX($A$9:A37)+1) ->  | B38: =Sheet2!B40&"] "&Sheet2!C40&"] "&Sheet2!D40 -> ] ] | C38: =IF(Sheet2!E40="","",Sheet2!E40) ->  | D38: =IF(Sheet2!F40="","",Sheet2!F40) ->  | E38: =IF(Sheet2!G40="","",TEXT(Sheet2!G40,"D-M-YYYY")) ->  | H38: =IF(Sheet2!H40="","",Sheet2!H40) -> 
A39: =IF(OR(OR(OR(B39="",C39="",D39="",E39=""))),"",MAX($A$9:A38)+1) ->  | B39: =Sheet2!B41&"] "&Sheet2!C41&"] "&Sheet2!D41 -> ] ] | C39: =IF(Sheet2!E41="","",Sheet2!E41) ->  | D39: =IF(Sheet2!F41="","",Sheet2!F41) ->  | E39: =IF(Sheet2!G41="","",TEXT(Sheet2!G41,"D-M-YYYY")) ->  | H39: =IF(Sheet2!H41="","",Sheet2!H41) -> 
A40: =IF(OR(OR(OR(B40="",C40="",D40="",E40=""))),"",MAX($A$9:A39)+1) ->  | B40: =Sheet2!B42&"] "&Sheet2!C42&"] "&Sheet2!D42 -> ] ] | C40: =IF(Sheet2!E42="","",Sheet2!E42) ->  | D40: =IF(Sheet2!F42="","",Sheet2!F42) ->  | E40: =IF(Sheet2!G42="","",TEXT(Sheet2!G42,"D-M-YYYY")) ->  | H40: =IF(Sheet2!H42="","",Sheet2!H42) -> 
A41: =IF(OR(OR(OR(B41="",C41="",D41="",E41=""))),"",MAX($A$9:A40)+1) ->  | B41: =Sheet2!B43&"] "&Sheet2!C43&"] "&Sheet2!D43 -> ] ] | C41: =IF(Sheet2!E43="","",Sheet2!E43) ->  | D41: =IF(Sheet2!F43="","",Sheet2!F43) ->  | E41: =IF(Sheet2!G43="","",TEXT(Sheet2!G43,"D-M-YYYY")) ->  | H41: =IF(Sheet2!H43="","",Sheet2!H43) -> 
A42: =IF(OR(OR(OR(B42="",C42="",D42="",E42=""))),"",MAX($A$9:A41)+1) ->  | B42: =Sheet2!B44&"] "&Sheet2!C44&"] "&Sheet2!D44 -> ] ] | C42: =IF(Sheet2!E44="","",Sheet2!E44) ->  | D42: =IF(Sheet2!F44="","",Sheet2!F44) ->  | E42: =IF(Sheet2!G44="","",TEXT(Sheet2!G44,"D-M-YYYY")) ->  | H42: =IF(Sheet2!H44="","",Sheet2!H44) -> 
A43: =IF(OR(OR(OR(B43="",C43="",D43="",E43=""))),"",MAX($A$9:A42)+1) ->  | B43: =Sheet2!B45&"] "&Sheet2!C45&"] "&Sheet2!D45 -> ] ] | C43: =IF(Sheet2!E45="","",Sheet2!E45) ->  | D43: =IF(Sheet2!F45="","",Sheet2!F45) ->  | E43: =IF(Sheet2!G45="","",TEXT(Sheet2!G45,"D-M-YYYY")) ->  | H43: =IF(Sheet2!H45="","",Sheet2!H45) -> 
A44: =IF(OR(OR(OR(B44="",C44="",D44="",E44=""))),"",MAX($A$9:A43)+1) ->  | B44: =Sheet2!B46&"] "&Sheet2!C46&"] "&Sheet2!D46 -> ] ] | C44: =IF(Sheet2!E46="","",Sheet2!E46) ->  | D44: =IF(Sheet2!F46="","",Sheet2!F46) ->  | E44: =IF(Sheet2!G46="","",TEXT(Sheet2!G46,"D-M-YYYY")) ->  | H44: =IF(Sheet2!H46="","",Sheet2!H46) -> 
A45: =IF(OR(OR(OR(B45="",C45="",D45="",E45=""))),"",MAX($A$9:A44)+1) ->  | B45: =Sheet2!B47&"] "&Sheet2!C47&"] "&Sheet2!D47 -> ] ] | C45: =IF(Sheet2!E47="","",Sheet2!E47) ->  | D45: =IF(Sheet2!F47="","",Sheet2!F47) ->  | E45: =IF(Sheet2!G47="","",TEXT(Sheet2!G47,"D-M-YYYY")) ->  | H45: =IF(Sheet2!H47="","",Sheet2!H47) -> 
A46: =IF(OR(OR(OR(B46="",C46="",D46="",E46=""))),"",MAX($A$9:A45)+1) ->  | B46: =Sheet2!B48&"] "&Sheet2!C48&"] "&Sheet2!D48 -> ] ] | C46: =IF(Sheet2!E48="","",Sheet2!E48) ->  | D46: =IF(Sheet2!F48="","",Sheet2!F48) ->  | E46: =IF(Sheet2!G48="","",TEXT(Sheet2!G48,"D-M-YYYY")) ->  | H46: =IF(Sheet2!H48="","",Sheet2!H48) -> 
A47: =IF(OR(OR(OR(B47="",C47="",D47="",E47=""))),"",MAX($A$9:A46)+1) ->  | B47: =Sheet2!B49&"] "&Sheet2!C49&"] "&Sheet2!D49 -> ] ] | C47: =IF(Sheet2!E49="","",Sheet2!E49) ->  | D47: =IF(Sheet2!F49="","",Sheet2!F49) ->  | E47: =IF(Sheet2!G49="","",TEXT(Sheet2!G49,"D-M-YYYY")) ->  | H47: =IF(Sheet2!H49="","",Sheet2!H49) -> 
A48: =IF(OR(OR(OR(B48="",C48="",D48="",E48=""))),"",MAX($A$9:A47)+1) ->  | B48: =Sheet2!B50&"] "&Sheet2!C50&"] "&Sheet2!D50 -> ] ] | C48: =IF(Sheet2!E50="","",Sheet2!E50) ->  | D48: =IF(Sheet2!F50="","",Sheet2!F50) ->  | E48: =IF(Sheet2!G50="","",TEXT(Sheet2!G50,"D-M-YYYY")) ->  | H48: =IF(Sheet2!H50="","",Sheet2!H50) -> 
A49: =IF(OR(OR(OR(B49="",C49="",D49="",E49=""))),"",MAX($A$9:A48)+1) ->  | B49: =Sheet2!B51&"] "&Sheet2!C51&"] "&Sheet2!D51 -> ] ] | C49: =IF(Sheet2!E51="","",Sheet2!E51) ->  | D49: =IF(Sheet2!F51="","",Sheet2!F51) ->  | E49: =IF(Sheet2!G51="","",TEXT(Sheet2!G51,"D-M-YYYY")) ->  | H49: =IF(Sheet2!H51="","",Sheet2!H51) -> 
A50: =IF(OR(OR(OR(B50="",C50="",D50="",E50=""))),"",MAX($A$9:A49)+1) ->  | B50: =Sheet2!B52&"] "&Sheet2!C52&"] "&Sheet2!D52 -> ] ] | C50: =IF(Sheet2!E52="","",Sheet2!E52) ->  | D50: =IF(Sheet2!F52="","",Sheet2!F52) ->  | E50: =IF(Sheet2!G52="","",TEXT(Sheet2!G52,"D-M-YYYY")) ->  | H50: =IF(Sheet2!H52="","",Sheet2!H52) -> 
A51: =IF(OR(OR(OR(B51="",C51="",D51="",E51=""))),"",MAX($A$9:A50)+1) ->  | B51: =Sheet2!B53&"] "&Sheet2!C53&"] "&Sheet2!D53 -> ] ] | C51: =IF(Sheet2!E53="","",Sheet2!E53) ->  | D51: =IF(Sheet2!F53="","",Sheet2!F53) ->  | E51: =IF(Sheet2!G53="","",TEXT(Sheet2!G53,"D-M-YYYY")) ->  | H51: =IF(Sheet2!H53="","",Sheet2!H53) -> 
A52: =IF(OR(OR(OR(B52="",C52="",D52="",E52=""))),"",MAX($A$9:A51)+1) ->  | B52: =Sheet2!B54&"] "&Sheet2!C54&"] "&Sheet2!D54 -> ] ] | C52: =IF(Sheet2!E54="","",Sheet2!E54) ->  | D52: =IF(Sheet2!F54="","",Sheet2!F54) ->  | E52: =IF(Sheet2!G54="","",TEXT(Sheet2!G54,"D-M-YYYY")) ->  | H52: =IF(Sheet2!H54="","",Sheet2!H54) -> 
A53: =IF(OR(OR(OR(B53="",C53="",D53="",E53=""))),"",MAX($A$9:A52)+1) ->  | B53: =Sheet2!B55&"] "&Sheet2!C55&"] "&Sheet2!D55 -> ] ] | C53: =IF(Sheet2!E55="","",Sheet2!E55) ->  | D53: =IF(Sheet2!F55="","",Sheet2!F55) ->  | E53: =IF(Sheet2!G55="","",TEXT(Sheet2!G55,"D-M-YYYY")) ->  | H53: =IF(Sheet2!H55="","",Sheet2!H55) -> 
A54: =IF(OR(OR(OR(B54="",C54="",D54="",E54=""))),"",MAX($A$9:A53)+1) ->  | B54: =Sheet2!B56&"] "&Sheet2!C56&"] "&Sheet2!D56 -> ] ] | C54: =IF(Sheet2!E56="","",Sheet2!E56) ->  | D54: =IF(Sheet2!F56="","",Sheet2!F56) ->  | E54: =IF(Sheet2!G56="","",TEXT(Sheet2!G56,"D-M-YYYY")) ->  | H54: =IF(Sheet2!H56="","",Sheet2!H56) -> 
A55: =IF(OR(OR(OR(B55="",C55="",D55="",E55=""))),"",MAX($A$9:A54)+1) ->  | B55: =Sheet2!B57&"] "&Sheet2!C57&"] "&Sheet2!D57 -> ] ] | C55: =IF(Sheet2!E57="","",Sheet2!E57) ->  | D55: =IF(Sheet2!F57="","",Sheet2!F57) ->  | E55: =IF(Sheet2!G57="","",TEXT(Sheet2!G57,"D-M-YYYY")) ->  | H55: =IF(Sheet2!H57="","",Sheet2!H57) -> 
A56: =IF(OR(OR(OR(B56="",C56="",D56="",E56=""))),"",MAX($A$9:A55)+1) ->  | B56: =Sheet2!B58&"] "&Sheet2!C58&"] "&Sheet2!D58 -> ] ] | C56: =IF(Sheet2!E58="","",Sheet2!E58) ->  | D56: =IF(Sheet2!F58="","",Sheet2!F58) ->  | E56: =IF(Sheet2!G58="","",TEXT(Sheet2!G58,"D-M-YYYY")) ->  | H56: =IF(Sheet2!H58="","",Sheet2!H58) -> 
A57: =IF(OR(OR(OR(B57="",C57="",D57="",E57=""))),"",MAX($A$9:A56)+1) ->  | B57: =Sheet2!B59&"] "&Sheet2!C59&"] "&Sheet2!D59 -> ] ] | C57: =IF(Sheet2!E59="","",Sheet2!E59) ->  | D57: =IF(Sheet2!F59="","",Sheet2!F59) ->  | E57: =IF(Sheet2!G59="","",TEXT(Sheet2!G59,"D-M-YYYY")) ->  | H57: =IF(Sheet2!H59="","",Sheet2!H59) -> 
A58: =IF(OR(OR(OR(B58="",C58="",D58="",E58=""))),"",MAX($A$9:A57)+1) ->  | B58: =Sheet2!B60&"] "&Sheet2!C60&"] "&Sheet2!D60 -> ] ] | C58: =IF(Sheet2!E60="","",Sheet2!E60) ->  | D58: =IF(Sheet2!F60="","",Sheet2!F60) ->  | E58: =IF(Sheet2!G60="","",TEXT(Sheet2!G60,"D-M-YYYY")) ->  | H58: =IF(Sheet2!H60="","",Sheet2!H60) -> 
A59: izekf.kr fd;k tkrk gS fd mi;qZDr deZpkfj;ksa ds }kjk ,sls fdlh Hkh izdkj ds vodk'k dk miHkksx ugha fd;k gS] ftlls mudh okf"kZd osru o`f) izHkkfor gksrh gksA
A60: okf"kZd osru o`f) dk ykHk tqykbZ ekg dh izFke fnukad ls ns; gksxk rFkk ekg dh izFke fnukad dks deZpkjh ds vkdfLed vodk'k dks NksMdj vU; fdlh Hkh izdkj ds vodk'k ij jgus dh fLFkfr esa okf"kZd osru o`f) dk vkfFkZd ykHk deZpkjh ds vodk'k ls ykSVus dh fnukad ls ns; gksxkA okf"kZd osru o`f) dk bUnzkt lacaf/kr deZpkjh dh lsok iqfLrdk esa ;Fkk LFkku dj fn;k x;k gSA
F62: gLrk{kj MhMhvks e; in eqgj
A63: izfrfyfi fuEu dks lwpukFkZ ,oa vko';d dk;Zokgh gsrq izf"kr gSA
A64: 1- Jheku~ midks"kkf/kdkjh] midks"k dk;kZy; ----------------A
A65: 2- ys[kk 'kk[kk] LFkkuh; dk;kZy;A
A66: 3- lacaf/kr deZpkjh ----------------A
A67: 4- jf{kr izfrfyfiA
F69: gLrk{kj MhMhvks e; in eqgj

Sheet Sheet4
A1: vkgj.k ,oa forj.k vf/kdkjh dk;kZy;↓
A2: jktdh; mPp ek/;fed fon~;ky; ekywrkuk ¼Fkkukxkth½ vyoj
A3: cksul o"kZ↓
A4: 2023&24
A5: cksul vkns'k fnukad↓
A6: 2024-10-13
A7: dqy ns; cksul jkf'k↓
A8: 6774
A9: izksfoMsUV Q.M esa tek izfr'kr↓
A10: 25
A11: Lohd`rh vkns'k Øekad↓
A12: 1636
A13: Lohd`rh vkns'k fnukad↓
A14: 2024-10-15
A15: Ø- la- | B15: uke deZpkjh | C15: in uke | D15: inLFkkiu LFkku | E15: ="31-03-"&LEFT(A4,4)+1&" dks izkIr osru" -> 31-03-2024 dks izkIr osru | G15: ns; cksul ekg
E16: is&ysoy | F16: osru
A17: 1 | B17: izeksn dqekj lSuh | C17: v/;kid | D17: jkmekfo ekywrkuk | E17: ,y & 11 | F17: 49300 | G17: 12
A18: 2
A19: 3
A20: 4 | B20: izeksn dqekj lSuh | C20: v/;kid | D20: jkmekfo ekywrkuk | E20: ,y & 11 | F20: 50800 | G20: 6
A21: 5
A22: 6
A23: 7
A24: 8
A25: 9
A26: 10
A27: 11
A28: 12
A29: 13
A30: 14
A31: 15
A32: 16
A33: 17
A34: 18
A35: 19
A36: 20
A37: 21
A38: 22
A39: 23
A40: 24
A41: 25
A42: 26
A43: 27
A44: 28
A45: 29
A46: 30
A47: 31
A48: 32
A49: 33
A50: 34
A51: 35
A52: 36
A53: 37
A54: 38
A55: 39
A56: 40

Sheet Sheet5
A1: ="dk;kZy; "&Sheet4!A2 -> dk;kZy; jktdh; mPp ek/;fed fon~;ky; ekywrkuk ¼Fkkukxkth½ vyoj
A2: ="dzekad % "&Sheet4!A12 -> dzekad % 1636 | H2: ="fnukad % "&IF(Sheet4!A14="","",TEXT(Sheet4!A14,"DD-MM-YYYY")) -> fnukad % 15-10-2024
A4: dk;kZy; vkns'k
A5: =" foÙk foHkkx jktLFkku ljdkj ds vkns'k dzekad ,Q-6¼5½,QMh¼#Yl½@2009 t;iqj] fnukad "&TEXT(Sheet4!A6,"DD-MM-YYYY")&" dh vuqikyuk esa bl dk;kZy; ds fuEu vjktif=r deZpkjh tks 01 vizSy] "&LEFT(Sheet4!A4,4)+1&" dks jktdh; lsok esa fujarj dk;Zjr Fks rFkk jktLFkku flfoy lsok ¼iqujhf{kr osru½ fu;e] 2017 esa is eSfVªDl ysoy 12 vFkok blls de es osru vkgfjr dj jgs FksA budks foÙkh; o""kZ "&Sheet4!A4&" gsrq rnFkZ cksul jkT; ljdkj }kjk fu/kkZfjr fu;eksa ds varxZr Lohd`r fd;k tkrk gSA" -> foÙk foHkkx jktLFkku ljdkj ds vkns'k dzekad ,Q-6¼5½,QMh¼#Yl½@2009 t;iqj] fnukad 13-10-2024 dh vuqikyuk esa bl dk;kZy; ds fuEu vjktif=r deZpkjh tks 01 vizSy] 2024 dks jktdh; lsok esa fujarj dk;Zjr Fks rFkk jktLFkku flfoy lsok ¼iqujhf{kr osru½ fu;e] 2017 esa is eSfVªDl ysoy 12 vFkok blls de es osru vkgfjr dj jgs FksA budks foÙkh; o"kZ 2023&24 gsrq rnFkZ cksul jkT; ljdkj }kjk fu/kkZfjr fu;eksa ds varxZr Lohd`r fd;k tkrk gSA
A6: Ø- la- | B6: uke deZpkjh] in uke ,oa inLFkkiu LFkku | C6: ="31-03-"&LEFT(Sheet4!A4,4)+1&" dks izkIr osru" -> 31-03-2024 dks izkIr osru | E6: ns; cksul ekg | F6: dqy cksul jkf'k | G6: izksfoMsUV Q.M esa tek jkf'k | H6: udn ns; jkf'k
C7: is&ysoy | D7: ewy osru
A8: =IF(OR(OR(OR(OR(OR(B8="",C8="",D8="",E8=""))))),"",1) -> 1 | B8: =Sheet4!B17&"] "&Sheet4!C17&"] "&Sheet4!D17 -> izeksn dqekj lSuh] v/;kid] jkmekfo ekywrkuk | C8: =IF(Sheet4!E17="","",Sheet4!E17) -> ,y & 11 | D8: =IF(Sheet4!F17="","",Sheet4!F17) -> 49300 | E8: =IF(Sheet4!G17="","",Sheet4!G17) -> 12 | F8: =IFERROR(ROUND((Sheet4!$A$8/12)*Sheet5!E8,0),"") -> 6774 | G8: =IFERROR(ROUND(F8*Sheet4!$A$10/100,0),"") -> 1694 | H8: =IFERROR(F8-G8,"") -> 5080
A9: =IF(OR(OR(OR(B9="",C9="",D9="",E9=""))),"",MAX($A$8:A8)+1) ->  | B9: =Sheet4!B18&"] "&Sheet4!C18&"] "&Sheet4!D18 -> ] ] | C9: =IF(Sheet4!E18="","",Sheet4!E18) ->  | D9: =IF(Sheet4!F18="","",Sheet4!F18) ->  | E9: =IF(Sheet4!G18="","",Sheet4!G18) ->  | F9: =IFERROR(ROUND((Sheet4!$A$8/12)*Sheet5!E9,0),"") ->  | G9: =IFERROR(ROUND(F9*Sheet4!$A$10/100,0),"") ->  | H9: =IFERROR(F9-G9,"") -> 
A10: =IF(OR(OR(OR(B10="",C10="",D10="",E10=""))),"",MAX($A$8:A9)+1) ->  | B10: =Sheet4!B19&"] "&Sheet4!C19&"] "&Sheet4!D19 -> ] ] | C10: =IF(Sheet4!E19="","",Sheet4!E19) ->  | D10: =IF(Sheet4!F19="","",Sheet4!F19) ->  | E10: =IF(Sheet4!G19="","",Sheet4!G19) ->  | F10: =IFERROR(ROUND((Sheet4!$A$8/12)*Sheet5!E10,0),"") ->  | G10: =IFERROR(ROUND(F10*Sheet4!$A$10/100,0),"") -> 
A11: =IF(OR(OR(OR(B11="",C11="",D11="",E11=""))),"",MAX($A$8:A10)+1) -> 2 | B11: =Sheet4!B20&"] "&Sheet4!C20&"] "&Sheet4!D20 -> izeksn dqekj lSuh] v/;kid] jkmekfo ekywrkuk | C11: =IF(Sheet4!E20="","",Sheet4!E20) -> ,y & 11 | D11: =IF(Sheet4!F20="","",Sheet4!F20) -> 50800 | E11: =IF(Sheet4!G20="","",Sheet4!G20) -> 6 | F11: =IFERROR(ROUND((Sheet4!$A$8/12)*Sheet5!E11,0),"") -> 3387 | G11: =IFERROR(ROUND(F11*Sheet4!$A$10/100,0),"") -> 847 | H11: 2540
A12: =IF(OR(OR(OR(B12="",C12="",D12="",E12=""))),"",MAX($A$8:A11)+1) ->  | B12: =Sheet4!B21&"] "&Sheet4!C21&"] "&Sheet4!D21 -> ] ] | C12: =IF(Sheet4!E21="","",Sheet4!E21) ->  | D12: =IF(Sheet4!F21="","",Sheet4!F21) ->  | E12: =IF(Sheet4!G21="","",Sheet4!G21) ->  | F12: =IFERROR(ROUND((Sheet4!$A$8/12)*Sheet5!E12,0),"") ->  | G12: =IFERROR(ROUND(F12*Sheet4!$A$10/100,0),"") -> 
A13: =IF(OR(OR(OR(B13="",C13="",D13="",E13=""))),"",MAX($A$8:A12)+1) ->  | B13: =Sheet4!B22&"] "&Sheet4!C22&"] "&Sheet4!D22 -> ] ] | C13: =IF(Sheet4!E22="","",Sheet4!E22) ->  | D13: =IF(Sheet4!F22="","",Sheet4!F22) ->  | E13: =IF(Sheet4!G22="","",Sheet4!G22) ->  | F13: =IFERROR(ROUND((Sheet4!$A$8/12)*Sheet5!E13,0),"") ->  | G13: =IFERROR(ROUND(F13*Sheet4!$A$10/100,0),"") -> 
A14: =IF(OR(OR(OR(B14="",C14="",D14="",E14=""))),"",MAX($A$8:A13)+1) ->  | B14: =Sheet4!B23&"] "&Sheet4!C23&"] "&Sheet4!D23 -> ] ] | C14: =IF(Sheet4!E23="","",Sheet4!E23) ->  | D14: =IF(Sheet4!F23="","",Sheet4!F23) ->  | E14: =IF(Sheet4!G23="","",Sheet4!G23) ->  | F14: =IFERROR(ROUND((Sheet4!$A$8/12)*Sheet5!E14,0),"") ->  | G14: =IFERROR(ROUND(F14*Sheet4!$A$10/100,0),"") -> 
A15: =IF(OR(OR(OR(B15="",C15="",D15="",E15=""))),"",MAX($A$8:A14)+1) ->  | B15: =Sheet4!B24&"] "&Sheet4!C24&"] "&Sheet4!D24 -> ] ] | C15: =IF(Sheet4!E24="","",Sheet4!E24) ->  | D15: =IF(Sheet4!F24="","",Sheet4!F24) ->  | E15: =IF(Sheet4!G24="","",Sheet4!G24) ->  | F15: =IFERROR(ROUND((Sheet4!$A$8/12)*Sheet5!E15,0),"") ->  | G15: =IFERROR(ROUND(F15*Sheet4!$A$10/100,0),"") -> 
A16: =IF(OR(OR(OR(B16="",C16="",D16="",E16=""))),"",MAX($A$8:A15)+1) ->  | B16: =Sheet4!B25&"] "&Sheet4!C25&"] "&Sheet4!D25 -> ] ] | C16: =IF(Sheet4!E25="","",Sheet4!E25) ->  | D16: =IF(Sheet4!F25="","",Sheet4!F25) ->  | E16: =IF(Sheet4!G25="","",Sheet4!G25) ->  | F16: =IFERROR(ROUND((Sheet4!$A$8/12)*Sheet5!E16,0),"") ->  | G16: =IFERROR(ROUND(F16*Sheet4!$A$10/100,0),"") -> 
A17: =IF(OR(OR(OR(B17="",C17="",D17="",E17=""))),"",MAX($A$8:A16)+1) ->  | B17: =Sheet4!B26&"] "&Sheet4!C26&"] "&Sheet4!D26 -> ] ] | C17: =IF(Sheet4!E26="","",Sheet4!E26) ->  | D17: =IF(Sheet4!F26="","",Sheet4!F26) ->  | E17: =IF(Sheet4!G26="","",Sheet4!G26) ->  | F17: =IFERROR(ROUND((Sheet4!$A$8/12)*Sheet5!E17,0),"") ->  | G17: =IFERROR(ROUND(F17*Sheet4!$A$10/100,0),"") -> 
A18: =IF(OR(OR(OR(B18="",C18="",D18="",E18=""))),"",MAX($A$8:A17)+1) ->  | B18: =Sheet4!B27&"] "&Sheet4!C27&"] "&Sheet4!D27 -> ] ] | C18: =IF(Sheet4!E27="","",Sheet4!E27) ->  | D18: =IF(Sheet4!F27="","",Sheet4!F27) ->  | E18: =IF(Sheet4!G27="","",Sheet4!G27) ->  | F18: =IFERROR(ROUND((Sheet4!$A$8/12)*Sheet5!E18,0),"") ->  | G18: =IFERROR(ROUND(F18*Sheet4!$A$10/100,0),"") -> 
A19: =IF(OR(OR(OR(B19="",C19="",D19="",E19=""))),"",MAX($A$8:A18)+1) ->  | B19: =Sheet4!B28&"] "&Sheet4!C28&"] "&Sheet4!D28 -> ] ] | C19: =IF(Sheet4!E28="","",Sheet4!E28) ->  | D19: =IF(Sheet4!F28="","",Sheet4!F28) ->  | E19: =IF(Sheet4!G28="","",Sheet4!G28) ->  | F19: =IFERROR(ROUND((Sheet4!$A$8/12)*Sheet5!E19,0),"") ->  | G19: =IFERROR(ROUND(F19*Sheet4!$A$10/100,0),"") -> 
A20: =IF(OR(OR(OR(B20="",C20="",D20="",E20=""))),"",MAX($A$8:A19)+1) ->  | B20: =Sheet4!B29&"] "&Sheet4!C29&"] "&Sheet4!D29 -> ] ] | C20: =IF(Sheet4!E29="","",Sheet4!E29) ->  | D20: =IF(Sheet4!F29="","",Sheet4!F29) ->  | E20: =IF(Sheet4!G29="","",Sheet4!G29) ->  | F20: =IFERROR(ROUND((Sheet4!$A$8/12)*Sheet5!E20,0),"") ->  | G20: =IFERROR(ROUND(F20*Sheet4!$A$10/100,0),"") -> 
A21: =IF(OR(OR(OR(B21="",C21="",D21="",E21=""))),"",MAX($A$8:A20)+1) ->  | B21: =Sheet4!B30&"] "&Sheet4!C30&"] "&Sheet4!D30 -> ] ] | C21: =IF(Sheet4!E30="","",Sheet4!E30) ->  | D21: =IF(Sheet4!F30="","",Sheet4!F30) ->  | E21: =IF(Sheet4!G30="","",Sheet4!G30) ->  | F21: =IFERROR(ROUND((Sheet4!$A$8/12)*Sheet5!E21,0),"") ->  | G21: =IFERROR(ROUND(F21*Sheet4!$A$10/100,0),"") -> 
A22: =IF(OR(OR(OR(B22="",C22="",D22="",E22=""))),"",MAX($A$8:A21)+1) ->  | B22: =Sheet4!B31&"] "&Sheet4!C31&"] "&Sheet4!D31 -> ] ] | C22: =IF(Sheet4!E31="","",Sheet4!E31) ->  | D22: =IF(Sheet4!F31="","",Sheet4!F31) ->  | E22: =IF(Sheet4!G31="","",Sheet4!G31) ->  | F22: =IFERROR(ROUND((Sheet4!$A$8/12)*Sheet5!E22,0),"") ->  | G22: =IFERROR(ROUND(F22*Sheet4!$A$10/100,0),"") -> 
A23: =IF(OR(OR(OR(B23="",C23="",D23="",E23=""))),"",MAX($A$8:A22)+1) ->  | B23: =Sheet4!B32&"] "&Sheet4!C32&"] "&Sheet4!D32 -> ] ] | C23: =IF(Sheet4!E32="","",Sheet4!E32) ->  | D23: =IF(Sheet4!F32="","",Sheet4!F32) ->  | E23: =IF(Sheet4!G32="","",Sheet4!G32) ->  | F23: =IFERROR(ROUND((Sheet4!$A$8/12)*Sheet5!E23,0),"") ->  | G23: =IFERROR(ROUND(F23*Sheet4!$A$10/100,0),"") -> 
A24: =IF(OR(OR(OR(B24="",C24="",D24="",E24=""))),"",MAX($A$8:A23)+1) ->  | B24: =Sheet4!B33&"] "&Sheet4!C33&"] "&Sheet4!D33 -> ] ] | C24: =IF(Sheet4!E33="","",Sheet4!E33) ->  | D24: =IF(Sheet4!F33="","",Sheet4!F33) ->  | E24: =IF(Sheet4!G33="","",Sheet4!G33) ->  | F24: =IFERROR(ROUND((Sheet4!$A$8/12)*Sheet5!E24,0),"") ->  | G24: =IFERROR(ROUND(F24*Sheet4!$A$10/100,0),"") -> 
A25: =IF(OR(OR(OR(B25="",C25="",D25="",E25=""))),"",MAX($A$8:A24)+1) ->  | B25: =Sheet4!B34&"] "&Sheet4!C34&"] "&Sheet4!D34 -> ] ] | C25: =IF(Sheet4!E34="","",Sheet4!E34) ->  | D25: =IF(Sheet4!F34="","",Sheet4!F34) ->  | E25: =IF(Sheet4!G34="","",Sheet4!G34) ->  | F25: =IFERROR(ROUND((Sheet4!$A$8/12)*Sheet5!E25,0),"") ->  | G25: =IFERROR(ROUND(F25*Sheet4!$A$10/100,0),"") -> 
A26: =IF(OR(OR(OR(B26="",C26="",D26="",E26=""))),"",MAX($A$8:A25)+1) ->  | B26: =Sheet4!B35&"] "&Sheet4!C35&"] "&Sheet4!D35 -> ] ] | C26: =IF(Sheet4!E35="","",Sheet4!E35) ->  | D26: =IF(Sheet4!F35="","",Sheet4!F35) ->  | E26: =IF(Sheet4!G35="","",Sheet4!G35) ->  | F26: =IFERROR(ROUND((Sheet4!$A$8/12)*Sheet5!E26,0),"") ->  | G26: =IFERROR(ROUND(F26*Sheet4!$A$10/100,0),"") -> 
A27: =IF(OR(OR(OR(B27="",C27="",D27="",E27=""))),"",MAX($A$8:A26)+1) ->  | B27: =Sheet4!B36&"] "&Sheet4!C36&"] "&Sheet4!D36 -> ] ] | C27: =IF(Sheet4!E36="","",Sheet4!E36) ->  | D27: =IF(Sheet4!F36="","",Sheet4!F36) ->  | E27: =IF(Sheet4!G36="","",Sheet4!G36) ->  | F27: =IFERROR(ROUND((Sheet4!$A$8/12)*Sheet5!E27,0),"") ->  | G27: =IFERROR(ROUND(F27*Sheet4!$A$10/100,0),"") -> 
A28: =IF(OR(OR(OR(B28="",C28="",D28="",E28=""))),"",MAX($A$8:A27)+1) ->  | B28: =Sheet4!B37&"] "&Sheet4!C37&"] "&Sheet4!D37 -> ] ] | C28: =IF(Sheet4!E37="","",Sheet4!E37) ->  | D28: =IF(Sheet4!F37="","",Sheet4!F37) ->  | E28: =IF(Sheet4!G37="","",Sheet4!G37) ->  | F28: =IFERROR(ROUND((Sheet4!$A$8/12)*Sheet5!E28,0),"") ->  | G28: =IFERROR(ROUND(F28*Sheet4!$A$10/100,0),"") -> 
A29: =IF(OR(OR(OR(B29="",C29="",D29="",E29=""))),"",MAX($A$8:A28)+1) ->  | B29: =Sheet4!B38&"] "&Sheet4!C38&"] "&Sheet4!D38 -> ] ] | C29: =IF(Sheet4!E38="","",Sheet4!E38) ->  | D29: =IF(Sheet4!F38="","",Sheet4!F38) ->  | E29: =IF(Sheet4!G38="","",Sheet4!G38) ->  | F29: =IFERROR(ROUND((Sheet4!$A$8/12)*Sheet5!E29,0),"") ->  | G29: =IFERROR(ROUND(F29*Sheet4!$A$10/100,0),"") -> 
A30: =IF(OR(OR(OR(B30="",C30="",D30="",E30=""))),"",MAX($A$8:A29)+1) ->  | B30: =Sheet4!B39&"] "&Sheet4!C39&"] "&Sheet4!D39 -> ] ] | C30: =IF(Sheet4!E39="","",Sheet4!E39) ->  | D30: =IF(Sheet4!F39="","",Sheet4!F39) ->  | E30: =IF(Sheet4!G39="","",Sheet4!G39) ->  | F30: =IFERROR(ROUND((Sheet4!$A$8/12)*Sheet5!E30,0),"") ->  | G30: =IFERROR(ROUND(F30*Sheet4!$A$10/100,0),"") -> 
A31: =IF(OR(OR(OR(B31="",C31="",D31="",E31=""))),"",MAX($A$8:A30)+1) ->  | B31: =Sheet4!B40&"] "&Sheet4!C40&"] "&Sheet4!D40 -> ] ] | C31: =IF(Sheet4!E40="","",Sheet4!E40) ->  | D31: =IF(Sheet4!F40="","",Sheet4!F40) ->  | E31: =IF(Sheet4!G40="","",Sheet4!G40) ->  | F31: =IFERROR(ROUND((Sheet4!$A$8/12)*Sheet5!E31,0),"") ->  | G31: =IFERROR(ROUND(F31*Sheet4!$A$10/100,0),"") -> 
A32: =IF(OR(OR(OR(B32="",C32="",D32="",E32=""))),"",MAX($A$8:A31)+1) ->  | B32: =Sheet4!B41&"] "&Sheet4!C41&"] "&Sheet4!D41 -> ] ] | C32: =IF(Sheet4!E41="","",Sheet4!E41) ->  | D32: =IF(Sheet4!F41="","",Sheet4!F41) ->  | E32: =IF(Sheet4!G41="","",Sheet4!G41) ->  | F32: =IFERROR(ROUND((Sheet4!$A$8/12)*Sheet5!E32,0),"") ->  | G32: =IFERROR(ROUND(F32*Sheet4!$A$10/100,0),"") -> 
A33: =IF(OR(OR(OR(B33="",C33="",D33="",E33=""))),"",MAX($A$8:A32)+1) ->  | B33: =Sheet4!B42&"] "&Sheet4!C42&"] "&Sheet4!D42 -> ] ] | C33: =IF(Sheet4!E42="","",Sheet4!E42) ->  | D33: =IF(Sheet4!F42="","",Sheet4!F42) ->  | E33: =IF(Sheet4!G42="","",Sheet4!G42) ->  | F33: =IFERROR(ROUND((Sheet4!$A$8/12)*Sheet5!E33,0),"") ->  | G33: =IFERROR(ROUND(F33*Sheet4!$A$10/100,0),"") -> 
A34: =IF(OR(OR(OR(B34="",C34="",D34="",E34=""))),"",MAX($A$8:A33)+1) ->  | B34: =Sheet4!B43&"] "&Sheet4!C43&"] "&Sheet4!D43 -> ] ] | C34: =IF(Sheet4!E43="","",Sheet4!E43) ->  | D34: =IF(Sheet4!F43="","",Sheet4!F43) ->  | E34: =IF(Sheet4!G43="","",Sheet4!G43) ->  | F34: =IFERROR(ROUND((Sheet4!$A$8/12)*Sheet5!E34,0),"") ->  | G34: =IFERROR(ROUND(F34*Sheet4!$A$10/100,0),"") -> 
A35: =IF(OR(OR(OR(B35="",C35="",D35="",E35=""))),"",MAX($A$8:A34)+1) ->  | B35: =Sheet4!B44&"] "&Sheet4!C44&"] "&Sheet4!D44 -> ] ] | C35: =IF(Sheet4!E44="","",Sheet4!E44) ->  | D35: =IF(Sheet4!F44="","",Sheet4!F44) ->  | E35: =IF(Sheet4!G44="","",Sheet4!G44) ->  | F35: =IFERROR(ROUND((Sheet4!$A$8/12)*Sheet5!E35,0),"") ->  | G35: =IFERROR(ROUND(F35*Sheet4!$A$10/100,0),"") -> 
A36: =IF(OR(OR(OR(B36="",C36="",D36="",E36=""))),"",MAX($A$8:A35)+1) ->  | B36: =Sheet4!B45&"] "&Sheet4!C45&"] "&Sheet4!D45 -> ] ] | C36: =IF(Sheet4!E45="","",Sheet4!E45) ->  | D36: =IF(Sheet4!F45="","",Sheet4!F45) ->  | E36: =IF(Sheet4!G45="","",Sheet4!G45) ->  | F36: =IFERROR(ROUND((Sheet4!$A$8/12)*Sheet5!E36,0),"") ->  | G36: =IFERROR(ROUND(F36*Sheet4!$A$10/100,0),"") -> 
A37: =IF(OR(OR(OR(B37="",C37="",D37="",E37=""))),"",MAX($A$8:A36)+1) ->  | B37: =Sheet4!B46&"] "&Sheet4!C46&"] "&Sheet4!D46 -> ] ] | C37: =IF(Sheet4!E46="","",Sheet4!E46) ->  | D37: =IF(Sheet4!F46="","",Sheet4!F46) ->  | E37: =IF(Sheet4!G46="","",Sheet4!G46) ->  | F37: =IFERROR(ROUND((Sheet4!$A$8/12)*Sheet5!E37,0),"") ->  | G37: =IFERROR(ROUND(F37*Sheet4!$A$10/100,0),"") -> 
A38: =IF(OR(OR(OR(B38="",C38="",D38="",E38=""))),"",MAX($A$8:A37)+1) ->  | B38: =Sheet4!B47&"] "&Sheet4!C47&"] "&Sheet4!D47 -> ] ] | C38: =IF(Sheet4!E47="","",Sheet4!E47) ->  | D38: =IF(Sheet4!F47="","",Sheet4!F47) ->  | E38: =IF(Sheet4!G47="","",Sheet4!G47) ->  | F38: =IFERROR(ROUND((Sheet4!$A$8/12)*Sheet5!E38,0),"") ->  | G38: =IFERROR(ROUND(F38*Sheet4!$A$10/100,0),"") ->  | H38: =IFERROR(F38-G38,"") -> 
A39: =IF(OR(OR(OR(B39="",C39="",D39="",E39=""))),"",MAX($A$8:A38)+1) ->  | B39: =Sheet4!B48&"] "&Sheet4!C48&"] "&Sheet4!D48 -> ] ] | C39: =IF(Sheet4!E48="","",Sheet4!E48) ->  | D39: =IF(Sheet4!F48="","",Sheet4!F48) ->  | E39: =IF(Sheet4!G48="","",Sheet4!G48) ->  | F39: =IFERROR(ROUND((Sheet4!$A$8/12)*Sheet5!E39,0),"") ->  | G39: =IFERROR(ROUND(F39*Sheet4!$A$10/100,0),"") -> 
A40: =IF(OR(OR(OR(B40="",C40="",D40="",E40=""))),"",MAX($A$8:A39)+1) ->  | B40: =Sheet4!B49&"] "&Sheet4!C49&"] "&Sheet4!D49 -> ] ] | C40: =IF(Sheet4!E49="","",Sheet4!E49) ->  | D40: =IF(Sheet4!F49="","",Sheet4!F49) ->  | E40: =IF(Sheet4!G49="","",Sheet4!G49) ->  | F40: =IFERROR(ROUND((Sheet4!$A$8/12)*Sheet5!E40,0),"") ->  | G40: =IFERROR(ROUND(F40*Sheet4!$A$10/100,0),"") -> 
A41: =IF(OR(OR(OR(B41="",C41="",D41="",E41=""))),"",MAX($A$8:A40)+1) ->  | B41: =Sheet4!B50&"] "&Sheet4!C50&"] "&Sheet4!D50 -> ] ] | C41: =IF(Sheet4!E50="","",Sheet4!E50) ->  | D41: =IF(Sheet4!F50="","",Sheet4!F50) ->  | E41: =IF(Sheet4!G50="","",Sheet4!G50) ->  | F41: =IFERROR(ROUND((Sheet4!$A$8/12)*Sheet5!E41,0),"") ->  | G41: =IFERROR(ROUND(F41*Sheet4!$A$10/100,0),"") -> 
A42: =IF(OR(OR(OR(B42="",C42="",D42="",E42=""))),"",MAX($A$8:A41)+1) ->  | B42: =Sheet4!B51&"] "&Sheet4!C51&"] "&Sheet4!D51 -> ] ] | C42: =IF(Sheet4!E51="","",Sheet4!E51) ->  | D42: =IF(Sheet4!F51="","",Sheet4!F51) ->  | E42: =IF(Sheet4!G51="","",Sheet4!G51) ->  | F42: =IFERROR(ROUND((Sheet4!$A$8/12)*Sheet5!E42,0),"") ->  | G42: =IFERROR(ROUND(F42*Sheet4!$A$10/100,0),"") -> 
A43: =IF(OR(OR(OR(B43="",C43="",D43="",E43=""))),"",MAX($A$8:A42)+1) ->  | B43: =Sheet4!B52&"] "&Sheet4!C52&"] "&Sheet4!D52 -> ] ] | C43: =IF(Sheet4!E52="","",Sheet4!E52) ->  | D43: =IF(Sheet4!F52="","",Sheet4!F52) ->  | E43: =IF(Sheet4!G52="","",Sheet4!G52) ->  | F43: =IFERROR(ROUND((Sheet4!$A$8/12)*Sheet5!E43,0),"") ->  | G43: =IFERROR(ROUND(F43*Sheet4!$A$10/100,0),"") -> 
A44: =IF(OR(OR(OR(B44="",C44="",D44="",E44=""))),"",MAX($A$8:A43)+1) ->  | B44: =Sheet4!B53&"] "&Sheet4!C53&"] "&Sheet4!D53 -> ] ] | C44: =IF(Sheet4!E53="","",Sheet4!E53) ->  | D44: =IF(Sheet4!F53="","",Sheet4!F53) ->  | E44: =IF(Sheet4!G53="","",Sheet4!G53) ->  | F44: =IFERROR(ROUND((Sheet4!$A$8/12)*Sheet5!E44,0),"") ->  | G44: =IFERROR(ROUND(F44*Sheet4!$A$10/100,0),"") -> 
A45: =IF(OR(OR(OR(B45="",C45="",D45="",E45=""))),"",MAX($A$8:A44)+1) ->  | B45: =Sheet4!B54&"] "&Sheet4!C54&"] "&Sheet4!D54 -> ] ] | C45: =IF(Sheet4!E54="","",Sheet4!E54) ->  | D45: =IF(Sheet4!F54="","",Sheet4!F54) ->  | E45: =IF(Sheet4!G54="","",Sheet4!G54) ->  | F45: =IFERROR(ROUND((Sheet4!$A$8/12)*Sheet5!E45,0),"") ->  | G45: =IFERROR(ROUND(F45*Sheet4!$A$10/100,0),"") -> 
A46: =IF(OR(OR(OR(B46="",C46="",D46="",E46=""))),"",MAX($A$8:A45)+1) ->  | B46: =Sheet4!B55&"] "&Sheet4!C55&"] "&Sheet4!D55 -> ] ] | C46: =IF(Sheet4!E55="","",Sheet4!E55) ->  | D46: =IF(Sheet4!F55="","",Sheet4!F55) ->  | E46: =IF(Sheet4!G55="","",Sheet4!G55) ->  | F46: =IFERROR(ROUND((Sheet4!$A$8/12)*Sheet5!E46,0),"") ->  | G46: =IFERROR(ROUND(F46*Sheet4!$A$10/100,0),"") -> 
A47: =IF(OR(OR(OR(B47="",C47="",D47="",E47=""))),"",MAX($A$8:A46)+1) ->  | B47: =Sheet4!B56&"] "&Sheet4!C56&"] "&Sheet4!D56 -> ] ] | C47: =IF(Sheet4!E56="","",Sheet4!E56) ->  | D47: =IF(Sheet4!F56="","",Sheet4!F56) ->  | E47: =IF(Sheet4!G56="","",Sheet4!G56) ->  | F47: =IFERROR(ROUND((Sheet4!$A$8/12)*Sheet5!E47,0),"") ->  | G47: =IFERROR(ROUND(F47*Sheet4!$A$10/100,0),"") ->  | H47: =IFERROR(F47-G47,"") -> 
F49: gLrk{kj MhMhvks e; in eqgj
A50: izfrfyfi fuEu dks lwpukFkZ ,oa vko’;d dk;Zokgh gsrq iszf"kr gSA
A51: 1- Jheku~ midks"kkf/kdkjh] midks"k dk;kZy;-------------------A
A52: 2- ys[kk 'kk[kk] LFkkuh; dk;kZy;A
A53: 3- lacaf/k deZpkjh-------------A
F55: gLrk{kj MhMhvks e; in eqgj

Sheet Sheet6
A1: vkgj.k ,oa forj.k vf/kdkjh dk;kZy;↓
A2: jktdh; mPp ek/;fed fon~;ky; ekywrkuk ¼Fkkukxkth½ vyoj
A3: lefiZr foÙkh; o"kZ↓
A4: 2024&25
A5: Lohd`rh vkns'k Øekad↓
A6: 1641
A7: Lohd`rh vkns'k fnukad↓
A8: 2024-10-22
A9: Ø- la- | B9: uke deZpkjh | C9: in uke | D9: inLFkkiu LFkku | E9: vkosfnr fnukad | F9: Hkqxrku fnol | G9: vkosfnr fnukad dks osru
G10: is&ysoy | H10: osru | I10: Mh-,- jsV
A11: 1 | B11: izeksn dqekj lSuh | C11: v/;kid | D11: jkckmizkfo ekywrkuk | E11: 2024-10-22 | F11: 15 | G11: ,y & 11 | H11: 45100 | I11: 50
A12: 2
A13: 3 | B13: izeksn dqekj lSuh | C13: v/;kid | D13: jkmekfo ekywrkuk | E13: 2025-01-01 | F13: 10 | G13: ,y & 11 | H13: 50800 | I13: 53
A14: 4
A15: 5
A16: 6
A17: 7
A18: 8
A19: 9
A20: 10
A21: 11
A22: 12
A23: 13
A24: 14
A25: 15
A26: 16
A27: 17
A28: 18
A29: 19
A30: 20

Sheet Sheet7
A1: ="dk;kZy; "&Sheet6!A2 -> dk;kZy; jktdh; mPp ek/;fed fon~;ky; ekywrkuk ¼Fkkukxkth½ vyoj
A2: ="dzekad % "&Sheet6!A6 -> dzekad % 1641 | G2: ="fnukad % "&IF(Sheet6!A8="","",TEXT(Sheet6!A8,"dd-mm-yyyy")) -> fnukad % 22-10-2024
A4: dk;kZy; vkns'k
A5: =" bl dk;kZy; ds fuEu deZpkfj;ksa@deZpkjh ds }kjk vkosnu fd;s tkus ij jktLFkku lsok fu;e 91v ds vuqlj.k esa foÙkh; o""kZ "&Sheet6!A4&" gsrq fuEukuqlkj mikftZr vodk'k ds udn Hkqxrku fd;s tkus dh Lohd`rh iznku dh tkrh gSA bl Lohd`rh dk bUnzkt lacaf/kr deZpkfj;ksa@deZpkjh dh lsok iqfLrdk esa dj fn;k x;k gSA " -> bl dk;kZy; ds fuEu deZpkfj;ksa@deZpkjh ds }kjk vkosnu fd;s tkus ij jktLFkku lsok fu;e 91v ds vuqlj.k esa foÙkh; o"kZ 2024&25 gsrq fuEukuqlkj mikftZr vodk'k ds udn Hkqxrku fd;s tkus dh Lohd`rh iznku dh tkrh gSA bl Lohd`rh dk bUnzkt lacaf/kr deZpkfj;ksa@deZpkjh dh lsok iqfLrdk esa dj fn;k x;k gSA
A6: dz- la- | B6: uke deZpkjh] in uke ,oa inLFkkiu LFkku | C6: vkosfnr fnukad | D6: Hkqxrku fnol | E6: udn ns; jkf'k
E7: ewy osru | F7: Mh-,- | G7: ;ksx
A8: =IF(OR(OR(B8="",C8="",D8="")),"",1) -> 1 | B8: =Sheet6!B11&"] "&Sheet6!C11&"] "&Sheet6!D11 -> izeksn dqekj lSuh] v/;kid] jkckmizkfo ekywrkuk | C8: =IF(Sheet6!E11="","",TEXT(Sheet6!E11,"DD-MM-YYYY")) -> 22-10-2024 | D8: =IF(Sheet6!F11="","",Sheet6!F11) -> 15 | E8: =IF(D8="","",ROUND((Sheet6!H11/30)*Sheet6!F11,0)) -> 22550 | F8: =IF(E8="","",ROUND(E8*Sheet6!I11/100,0)) -> 11275 | G8: =IF(A8="","",E8+F8) -> 33825
A9: =IF(OR(OR(B9="",C9="",D9="")),"",MAX($A$8:A8)+1) ->  | B9: =Sheet6!B12&"] "&Sheet6!C12&"] "&Sheet6!D12 -> ] ] | C9: =IF(Sheet6!E12="","",TEXT(Sheet6!E12,"DD-MM-YYYY")) ->  | D9: =IF(Sheet6!F12="","",Sheet6!F12) ->  | E9: =IF(D9="","",ROUND((Sheet6!H12/30)*Sheet6!F12,0)) ->  | F9: =IF(E9="","",ROUND(E9*Sheet6!I12/100,0)) -> 
A10: =IF(OR(OR(B10="",C10="",D10="")),"",MAX($A$8:A9)+1) -> 2 | B10: =Sheet6!B13&"] "&Sheet6!C13&"] "&Sheet6!D13 -> izeksn dqekj lSuh] v/;kid] jkmekfo ekywrkuk | C10: =IF(Sheet6!E13="","",TEXT(Sheet6!E13,"DD-MM-YYYY")) -> 01-01-2025 | D10: =IF(Sheet6!F13="","",Sheet6!F13) -> 10 | E10: =IF(D10="","",ROUND((Sheet6!H13/30)*Sheet6!F13,0)) -> 16933 | F10: =IF(E10="","",ROUND(E10*Sheet6!I13/100,0)) -> 8974 | G10: 25907
A11: =IF(OR(OR(B11="",C11="",D11="")),"",MAX($A$8:A10)+1) ->  | B11: =Sheet6!B14&"] "&Sheet6!C14&"] "&Sheet6!D14 -> ] ] | C11: =IF(Sheet6!E14="","",TEXT(Sheet6!E14,"DD-MM-YYYY")) ->  | D11: =IF(Sheet6!F14="","",Sheet6!F14) ->  | E11: =IF(D11="","",ROUND((Sheet6!H14/30)*Sheet6!F14,0)) ->  | F11: =IF(E11="","",ROUND(E11*Sheet6!I14/100,0)) -> 
A12: =IF(OR(OR(B12="",C12="",D12="")),"",MAX($A$8:A11)+1) ->  | B12: =Sheet6!B15&"] "&Sheet6!C15&"] "&Sheet6!D15 -> ] ] | C12: =IF(Sheet6!E15="","",TEXT(Sheet6!E15,"DD-MM-YYYY")) ->  | D12: =IF(Sheet6!F15="","",Sheet6!F15) ->  | E12: =IF(D12="","",ROUND((Sheet6!H15/30)*Sheet6!F15,0)) ->  | F12: =IF(E12="","",ROUND(E12*Sheet6!I15/100,0)) -> 
A13: =IF(OR(OR(B13="",C13="",D13="")),"",MAX($A$8:A12)+1) ->  | B13: =Sheet6!B16&"] "&Sheet6!C16&"] "&Sheet6!D16 -> ] ] | C13: =IF(Sheet6!E16="","",TEXT(Sheet6!E16,"DD-MM-YYYY")) ->  | D13: =IF(Sheet6!F16="","",Sheet6!F16) ->  | E13: =IF(D13="","",ROUND((Sheet6!H16/30)*Sheet6!F16,0)) ->  | F13: =IF(E13="","",ROUND(E13*Sheet6!I16/100,0)) -> 
A14: =IF(OR(OR(B14="",C14="",D14="")),"",MAX($A$8:A13)+1) ->  | B14: =Sheet6!B17&"] "&Sheet6!C17&"] "&Sheet6!D17 -> ] ] | C14: =IF(Sheet6!E17="","",TEXT(Sheet6!E17,"DD-MM-YYYY")) ->  | D14: =IF(Sheet6!F17="","",Sheet6!F17) ->  | E14: =IF(D14="","",ROUND((Sheet6!H17/30)*Sheet6!F17,0)) ->  | F14: =IF(E14="","",ROUND(E14*Sheet6!I17/100,0)) -> 
A15: =IF(OR(OR(B15="",C15="",D15="")),"",MAX($A$8:A14)+1) ->  | B15: =Sheet6!B18&"] "&Sheet6!C18&"] "&Sheet6!D18 -> ] ] | C15: =IF(Sheet6!E18="","",TEXT(Sheet6!E18,"DD-MM-YYYY")) ->  | D15: =IF(Sheet6!F18="","",Sheet6!F18) ->  | E15: =IF(D15="","",ROUND((Sheet6!H18/30)*Sheet6!F18,0)) ->  | F15: =IF(E15="","",ROUND(E15*Sheet6!I18/100,0)) -> 
A16: =IF(OR(OR(B16="",C16="",D16="")),"",MAX($A$8:A15)+1) ->  | B16: =Sheet6!B19&"] "&Sheet6!C19&"] "&Sheet6!D19 -> ] ] | C16: =IF(Sheet6!E19="","",TEXT(Sheet6!E19,"DD-MM-YYYY")) ->  | D16: =IF(Sheet6!F19="","",Sheet6!F19) ->  | E16: =IF(D16="","",ROUND((Sheet6!H19/30)*Sheet6!F19,0)) ->  | F16: =IF(E16="","",ROUND(E16*Sheet6!I19/100,0)) -> 
A17: =IF(OR(OR(B17="",C17="",D17="")),"",MAX($A$8:A16)+1) ->  | B17: =Sheet6!B20&"] "&Sheet6!C20&"] "&Sheet6!D20 -> ] ] | C17: =IF(Sheet6!E20="","",TEXT(Sheet6!E20,"DD-MM-YYYY")) ->  | D17: =IF(Sheet6!F20="","",Sheet6!F20) ->  | E17: =IF(D17="","",ROUND((Sheet6!H20/30)*Sheet6!F20,0)) ->  | F17: =IF(E17="","",ROUND(E17*Sheet6!I20/100,0)) -> 
A18: =IF(OR(OR(B18="",C18="",D18="")),"",MAX($A$8:A17)+1) ->  | B18: =Sheet6!B21&"] "&Sheet6!C21&"] "&Sheet6!D21 -> ] ] | C18: =IF(Sheet6!E21="","",TEXT(Sheet6!E21,"DD-MM-YYYY")) ->  | D18: =IF(Sheet6!F21="","",Sheet6!F21) ->  | E18: =IF(D18="","",ROUND((Sheet6!H21/30)*Sheet6!F21,0)) ->  | F18: =IF(E18="","",ROUND(E18*Sheet6!I21/100,0)) -> 
A19: =IF(OR(OR(B19="",C19="",D19="")),"",MAX($A$8:A18)+1) ->  | B19: =Sheet6!B22&"] "&Sheet6!C22&"] "&Sheet6!D22 -> ] ] | C19: =IF(Sheet6!E22="","",TEXT(Sheet6!E22,"DD-MM-YYYY")) ->  | D19: =IF(Sheet6!F22="","",Sheet6!F22) ->  | E19: =IF(D19="","",ROUND((Sheet6!H22/30)*Sheet6!F22,0)) ->  | F19: =IF(E19="","",ROUND(E19*Sheet6!I22/100,0)) ->  | G19: =IF(A19="","",E19+F19) -> 
A20: =IF(OR(OR(B20="",C20="",D20="")),"",MAX($A$8:A19)+1) ->  | B20: =Sheet6!B23&"] "&Sheet6!C23&"] "&Sheet6!D23 -> ] ] | C20: =IF(Sheet6!E23="","",TEXT(Sheet6!E23,"DD-MM-YYYY")) ->  | D20: =IF(Sheet6!F23="","",Sheet6!F23) ->  | E20: =IF(D20="","",ROUND((Sheet6!H23/30)*Sheet6!F23,0)) ->  | F20: =IF(E20="","",ROUND(E20*Sheet6!I23/100,0)) ->  | G20: =IF(A20="","",E20+F20) -> 
A21: =IF(OR(OR(B21="",C21="",D21="")),"",MAX($A$8:A20)+1) ->  | B21: =Sheet6!B24&"] "&Sheet6!C24&"] "&Sheet6!D24 -> ] ] | C21: =IF(Sheet6!E24="","",TEXT(Sheet6!E24,"DD-MM-YYYY")) ->  | D21: =IF(Sheet6!F24="","",Sheet6!F24) ->  | E21: =IF(D21="","",ROUND((Sheet6!H24/30)*Sheet6!F24,0)) ->  | F21: =IF(E21="","",ROUND(E21*Sheet6!I24/100,0)) -> 
A22: =IF(OR(OR(B22="",C22="",D22="")),"",MAX($A$8:A21)+1) ->  | B22: =Sheet6!B25&"] "&Sheet6!C25&"] "&Sheet6!D25 -> ] ] | C22: =IF(Sheet6!E25="","",TEXT(Sheet6!E25,"DD-MM-YYYY")) ->  | D22: =IF(Sheet6!F25="","",Sheet6!F25) ->  | E22: =IF(D22="","",ROUND((Sheet6!H25/30)*Sheet6!F25,0)) ->  | F22: =IF(E22="","",ROUND(E22*Sheet6!I25/100,0)) -> 
A23: =IF(OR(OR(B23="",C23="",D23="")),"",MAX($A$8:A22)+1) ->  | B23: =Sheet6!B26&"] "&Sheet6!C26&"] "&Sheet6!D26 -> ] ] | C23: =IF(Sheet6!E26="","",TEXT(Sheet6!E26,"DD-MM-YYYY")) ->  | D23: =IF(Sheet6!F26="","",Sheet6!F26) ->  | E23: =IF(D23="","",ROUND((Sheet6!H26/30)*Sheet6!F26,0)) ->  | F23: =IF(E23="","",ROUND(E23*Sheet6!I26/100,0)) -> 
A24: =IF(OR(OR(B24="",C24="",D24="")),"",MAX($A$8:A23)+1) ->  | B24: =Sheet6!B27&"] "&Sheet6!C27&"] "&Sheet6!D27 -> ] ] | C24: =IF(Sheet6!E27="","",TEXT(Sheet6!E27,"DD-MM-YYYY")) ->  | D24: =IF(Sheet6!F27="","",Sheet6!F27) ->  | E24: =IF(D24="","",ROUND((Sheet6!H27/30)*Sheet6!F27,0)) ->  | F24: =IF(E24="","",ROUND(E24*Sheet6!I27/100,0)) -> 
A25: =IF(OR(OR(B25="",C25="",D25="")),"",MAX($A$8:A24)+1) ->  | B25: =Sheet6!B28&"] "&Sheet6!C28&"] "&Sheet6!D28 -> ] ] | C25: =IF(Sheet6!E28="","",TEXT(Sheet6!E28,"DD-MM-YYYY")) ->  | D25: =IF(Sheet6!F28="","",Sheet6!F28) ->  | E25: =IF(D25="","",ROUND((Sheet6!H28/30)*Sheet6!F28,0)) ->  | F25: =IF(E25="","",ROUND(E25*Sheet6!I28/100,0)) -> 
A26: =IF(OR(OR(B26="",C26="",D26="")),"",MAX($A$8:A25)+1) ->  | B26: =Sheet6!B29&"] "&Sheet6!C29&"] "&Sheet6!D29 -> ] ] | C26: =IF(Sheet6!E29="","",TEXT(Sheet6!E29,"DD-MM-YYYY")) ->  | D26: =IF(Sheet6!F29="","",Sheet6!F29) ->  | E26: =IF(D26="","",ROUND((Sheet6!H29/30)*Sheet6!F29,0)) ->  | F26: =IF(E26="","",ROUND(E26*Sheet6!I29/100,0)) -> 
A27: =IF(OR(OR(B27="",C27="",D27="")),"",MAX($A$8:A26)+1) ->  | B27: =Sheet6!B30&"] "&Sheet6!C30&"] "&Sheet6!D30 -> ] ] | C27: =IF(Sheet6!E30="","",TEXT(Sheet6!E30,"DD-MM-YYYY")) ->  | D27: =IF(Sheet6!F30="","",Sheet6!F30) ->  | E27: =IF(D27="","",ROUND((Sheet6!H30/30)*Sheet6!F30,0)) ->  | F27: =IF(E27="","",ROUND(E27*Sheet6!I30/100,0)) -> 
D29: gLrk{kj MhMhvks e; in eqgj
A30: izfrfyfi fuEu dks lwpukFkZ ,oa vko’;d dk;Zokgh gsrq iszf"kr gSA
A31: 1- Jheku~ midks"kkf/kdkjh] midks"k dk;kZy;-------------------A
A32: 2- ys[kk 'kk[kk] LFkkuh; dk;kZy;A
A33: 3- lacaf/kr deZpkjh-------------------A
D35: gLrk{kj MhMhvks e; in eqgj

Sheet Sheet8
A1: vkgj.k ,oa forj.k vf/kdkjh dk;kZy;↓
A2: jktdh; mPp ek/;fed fon~;ky; ekywrkuk ¼Fkkukxkth½ vyoj
A3: Lohd`rh vkns'k Øekad↓
A4: 1500
A5: Lohd`rh vkns'k fnukad↓
A6: 2023-07-15
A7: Ø- la- | B7: uke deZpkjh | C7: in uke | D7: inLFkkiu LFkku | E7: dk;Zxg.k fnukad | F7: LFkkbZdj.k fnukad | G7: vkosnu fnukad | H7: Lohd`rh fnukad | I7: Lohd`r ,pvk,
A8: 1 | B8: izeksn dqekj lSuh | C8: v/;kid | D8: jk m ek fo ekywrkuk | E8: 2023-07-21 | F8: 2023-07-21 | G8: 2023-07-01 | H8: 2023-07-21 | I8: 9 izfr'kr
A9: 2
A10: 3 | B10: izeksn dqekj lSuh | C10: v/;kid | D10: jk m ek fo ekywrkuk | E10: 2010-01-17 | F10: 2008-01-17 | G10: 2010-01-17 | H10: 2020-04-05 | I10: 10 izfr'kr
A11: 4
A12: 5
A13: 6
A14: 7
A15: 8
A16: 9
A17: 10

Sheet Sheet9
A1: ="dk;kZy; "&Sheet8!A2 -> dk;kZy; jktdh; mPp ek/;fed fon~;ky; ekywrkuk ¼Fkkukxkth½ vyoj
A2: ="dzekad % "&Sheet8!A4 -> dzekad % 1500 | G2: ="fnukad % "&IF(Sheet8!A6="","",TEXT(Sheet8!A6,"DD-MM-YYYY")) -> fnukad % 15-07-2023
A4: dk;kZy; vkns'k
A5: jktLFkku ljdkj ds vkns'k dzzekad ,Q 6¼4½ ,QMh@#Yl@07 fnukad 12-09-2008 la'kksf/kr nj fnukad 06-02-2009 ,oa jktLFkku flfoy lsok ¼iqujhf{kr osru½ fu;e] 2017 ds foÙk foHkkx ds vkns'k dzekad ,QMh 15¼1½ ,QMh@¼#Yl½ 2017 t;iqj fnukad 30-10-2017 ,oa lela[;ad la'kksf/kr vkns'k fnukad 09-12-2017 ds izko/kku vuqlkj jktLFkku lsok fu;eksa ds fu;e 7¼24½¼1½ esa ifjHkkf"kr osru ds fu;e vuqlkj fuEu deZpkfj;ksa dks muds }kjk izLrqr vkosnu i=ksa ds vk/kkj ij edku fdjk;k HkÙkk vkgj.k dh muds uke ds laeqq[k vafdr fnukad ls ,rn~ }kjk Lohd`rh iznku dh tkrh gSA
A6: dz-la- | B6: uke deZpkjh] in uke ,oa inLFkkiu LFkku | C6: dk;Zxg.k fnukad | D6: LFkkbZdj.k fnukad | E6: vkosnu fnukad | F6: Lohd`rh fnukad | G6: Lohd`r ,pvk,
A7: =IF(OR(OR(OR(B7="",C7="",D7="",E7=""))),"",1) -> 1 | B7: =Sheet8!B8&"] "&Sheet8!C8&"] "&Sheet8!D8 -> izeksn dqekj lSuh] v/;kid] jk m ek fo ekywrkuk | C7: =IF(Sheet8!E8="","",TEXT(Sheet8!E8,"DD-MM-YYYY")) -> 21-07-2023 | D7: =IF(Sheet8!F8="","",TEXT(Sheet8!F8,"DD-MM-YYYY")) -> 21-07-2023 | E7: =IF(Sheet8!G8="","",TEXT(Sheet8!G8,"DD-MM-YYYY")) -> 01-07-2023 | F7: =IF(Sheet8!H8="","",TEXT(Sheet8!H8,"DD-MM-YYYY")) -> 21-07-2023 | G7: =IF(Sheet8!I8="","",Sheet8!I8) -> 9 izfr'kr
A8: =IF(OR(OR(OR(B8="",C8="",D8="",E8=""))),"",MAX($A$7:A7)+1) ->  | B8: =Sheet8!B9&"] "&Sheet8!C9&"] "&Sheet8!D9 -> ] ] | C8: =IF(Sheet8!E9="","",TEXT(Sheet8!E9,"DD-MM-YYYY")) ->  | D8: =IF(Sheet8!F9="","",TEXT(Sheet8!F9,"DD-MM-YYYY")) ->  | E8: =IF(Sheet8!G9="","",TEXT(Sheet8!G9,"DD-MM-YYYY")) ->  | F8: =IF(Sheet8!H9="","",TEXT(Sheet8!H9,"DD-MM-YYYY")) ->  | G8: =IF(Sheet8!I9="","",Sheet8!I9) -> 
A9: =IF(OR(OR(OR(B9="",C9="",D9="",E9=""))),"",MAX($A$7:A8)+1) -> 2 | B9: =Sheet8!B10&"] "&Sheet8!C10&"] "&Sheet8!D10 -> izeksn dqekj lSuh] v/;kid] jk m ek fo ekywrkuk | C9: =IF(Sheet8!E10="","",TEXT(Sheet8!E10,"DD-MM-YYYY")) -> 17-01-2010 | D9: =IF(Sheet8!F10="","",TEXT(Sheet8!F10,"DD-MM-YYYY")) -> 17-01-2008 | E9: =IF(Sheet8!G10="","",TEXT(Sheet8!G10,"DD-MM-YYYY")) -> 17-01-2010 | F9: =IF(Sheet8!H10="","",TEXT(Sheet8!H10,"DD-MM-YYYY")) -> 05-04-2020 | G9: =IF(Sheet8!I10="","",Sheet8!I10) -> 10 izfr'kr
A10: =IF(OR(OR(OR(B10="",C10="",D10="",E10=""))),"",MAX($A$7:A9)+1) ->  | B10: =Sheet8!B11&"] "&Sheet8!C11&"] "&Sheet8!D11 -> ] ] | C10: =IF(Sheet8!E11="","",TEXT(Sheet8!E11,"DD-MM-YYYY")) ->  | D10: =IF(Sheet8!F11="","",TEXT(Sheet8!F11,"DD-MM-YYYY")) ->  | E10: =IF(Sheet8!G11="","",TEXT(Sheet8!G11,"DD-MM-YYYY")) ->  | F10: =IF(Sheet8!H11="","",TEXT(Sheet8!H11,"DD-MM-YYYY")) ->  | G10: =IF(Sheet8!I11="","",Sheet8!I11) -> 
A11: =IF(OR(OR(OR(B11="",C11="",D11="",E11=""))),"",MAX($A$7:A10)+1) ->  | B11: =Sheet8!B12&"] "&Sheet8!C12&"] "&Sheet8!D12 -> ] ] | C11: =IF(Sheet8!E12="","",TEXT(Sheet8!E12,"DD-MM-YYYY")) ->  | D11: =IF(Sheet8!F12="","",TEXT(Sheet8!F12,"DD-MM-YYYY")) ->  | E11: =IF(Sheet8!G12="","",TEXT(Sheet8!G12,"DD-MM-YYYY")) ->  | F11: =IF(Sheet8!H12="","",TEXT(Sheet8!H12,"DD-MM-YYYY")) ->  | G11: =IF(Sheet8!I12="","",Sheet8!I12) -> 
A12: =IF(OR(OR(OR(B12="",C12="",D12="",E12=""))),"",MAX($A$7:A11)+1) ->  | B12: =Sheet8!B13&"] "&Sheet8!C13&"] "&Sheet8!D13 -> ] ] | C12: =IF(Sheet8!E13="","",TEXT(Sheet8!E13,"DD-MM-YYYY")) ->  | D12: =IF(Sheet8!F13="","",TEXT(Sheet8!F13,"DD-MM-YYYY")) ->  | E12: =IF(Sheet8!G13="","",TEXT(Sheet8!G13,"DD-MM-YYYY")) ->  | F12: =IF(Sheet8!H13="","",TEXT(Sheet8!H13,"DD-MM-YYYY")) ->  | G12: =IF(Sheet8!I13="","",Sheet8!I13) -> 
A13: =IF(OR(OR(OR(B13="",C13="",D13="",E13=""))),"",MAX($A$7:A12)+1) ->  | B13: =Sheet8!B14&"] "&Sheet8!C14&"] "&Sheet8!D14 -> ] ] | C13: =IF(Sheet8!E14="","",TEXT(Sheet8!E14,"DD-MM-YYYY")) ->  | D13: =IF(Sheet8!F14="","",TEXT(Sheet8!F14,"DD-MM-YYYY")) ->  | E13: =IF(Sheet8!G14="","",TEXT(Sheet8!G14,"DD-MM-YYYY")) ->  | F13: =IF(Sheet8!H14="","",TEXT(Sheet8!H14,"DD-MM-YYYY")) ->  | G13: =IF(Sheet8!I14="","",Sheet8!I14) -> 
A14: =IF(OR(OR(OR(B14="",C14="",D14="",E14=""))),"",MAX($A$7:A13)+1) ->  | B14: =Sheet8!B15&"] "&Sheet8!C15&"] "&Sheet8!D15 -> ] ] | C14: =IF(Sheet8!E15="","",TEXT(Sheet8!E15,"DD-MM-YYYY")) ->  | D14: =IF(Sheet8!F15="","",TEXT(Sheet8!F15,"DD-MM-YYYY")) ->  | E14: =IF(Sheet8!G15="","",TEXT(Sheet8!G15,"DD-MM-YYYY")) ->  | F14: =IF(Sheet8!H15="","",TEXT(Sheet8!H15,"DD-MM-YYYY")) ->  | G14: =IF(Sheet8!I15="","",Sheet8!I15) -> 
A15: =IF(OR(OR(OR(B15="",C15="",D15="",E15=""))),"",MAX($A$7:A14)+1) ->  | B15: =Sheet8!B16&"] "&Sheet8!C16&"] "&Sheet8!D16 -> ] ] | C15: =IF(Sheet8!E16="","",TEXT(Sheet8!E16,"DD-MM-YYYY")) ->  | D15: =IF(Sheet8!F16="","",TEXT(Sheet8!F16,"DD-MM-YYYY")) ->  | E15: =IF(Sheet8!G16="","",TEXT(Sheet8!G16,"DD-MM-YYYY")) ->  | F15: =IF(Sheet8!H16="","",TEXT(Sheet8!H16,"DD-MM-YYYY")) ->  | G15: =IF(Sheet8!I16="","",Sheet8!I16) -> 
A16: =IF(OR(OR(OR(B16="",C16="",D16="",E16=""))),"",MAX($A$7:A15)+1) ->  | B16: =Sheet8!B17&"] "&Sheet8!C17&"] "&Sheet8!D17 -> ] ] | C16: =IF(Sheet8!E17="","",TEXT(Sheet8!E17,"DD-MM-YYYY")) ->  | D16: =IF(Sheet8!F17="","",TEXT(Sheet8!F17,"DD-MM-YYYY")) ->  | E16: =IF(Sheet8!G17="","",TEXT(Sheet8!G17,"DD-MM-YYYY")) ->  | F16: =IF(Sheet8!H17="","",TEXT(Sheet8!H17,"DD-MM-YYYY")) ->  | G16: =IF(Sheet8!I17="","",Sheet8!I17) -> 
E18: gLrk{kj MhMhvks e; in eqgj
A19: izfrfyfi fuEu dks lwpukFkZ ,oa vko’;d dk;Zokgh gsrq iszf"kr gSA
A20: 1- Jheku~ midks"kkf/kdkjh] midks"k dk;kZy;-------------------A
A21: 2- ys[kk 'kk[kk] LFkkuh; dk;kZy;A
A22: 3- lacaf/k deZpkjh-------------A
E24: gLrk{kj MhMhvks e; in eqgj

Sheet Sheet10
A1: vkgj.k ,oa forj.k vf/kdkjh dk;kZy;↓
A2: jktdh; mPp ek/;fed fon~;ky; ekywrkuk ¼Fkkukxkth½ vyoj
A3: Lohd`rh vkns'k Øekad↓
A4: 1500
A5: Lohd`rh vkns'k fnukad↓
A6: 2023-07-15
A7: Ø- la- | B7: uke deZpkjh | C7: in uke | D7: inLFkkiu LFkku | E7: lsokfuo`fÙk fnukad | F7: 'ks"k tek mikftZr vodk'k | G7: vafre izkIr ewy osru | H7: vafre izkIr Mh-,- nj
A8: 1 | B8: izeksn dqekj lSuh | C8: v/;kid | D8: jk m ek fo ekywrkuk | E8: 2042-07-31 | F8: 300 | G8: 145000 | H8: 50
A9: 2
A10: 3
A11: 4
A12: 5
A13: 6
A14: 7
A15: 8
A16: 9
A17: 10

Sheet Sheet11
A1: ="dk;kZy; "&Sheet10!A2 -> dk;kZy; jktdh; mPp ek/;fed fon~;ky; ekywrkuk ¼Fkkukxkth½ vyoj
A2: ="dzekad % "&Sheet10!A4 -> dzekad % 1500 | G2: ="fnukad % "&IF(Sheet10!A6="","",TEXT(Sheet10!A6,"DD-MM-YYYY")) -> fnukad % 15-07-2023
A4: dk;kZy; vkns'k
A5: bl dk;kZy; ds fuEu deZpkfj;ksa@deZpkjh dh jkT; lsok esa vf/kokf"kZdh vk;q iw.kZ gksus ij muds uke ds laeq[k vafdr fnukad dks lsokfuo`fÙk gksus dss QyLo#i deZpkfj;ksa@deZpkjh dh lsok iqfLrdk ds vodk'k [kkrs esa 'ks"k tek mikftZr vodk'k ds LoRo ds vodk'k osru esa udn Hkqxrku dh jktLFkku lsok fu;e 91&ch ds izko/kku vuqlkj ,rn~ }kjk Lohd`fr iznku dh tkrh gSaA udn Hkqxrku ds mikftZr vodk'k LoRo dh izfof"V deZpkjh ds vodk'k ys[kk esa dh tkdj mikftZr vodk'k LoRo 'kwU; dj fn;k x;k gSaA bldk Hkqxrku ctV gSM 2071&01&115&01&01 jkT; fuf/k ls fd;k tkosA
A6: dz- la- | B6: uke deZpkjh] in uke ,oa inLFkkiu LFkku | C6: lsokfuo`fÙk fnukad | D6: 'ks"k tek mikftZr vodk'k | E6: udn Hkqxrku jkf'k
E7: ewy osru | F7: Mh- ,- | G7: ;ksx
A8: =IF(OR(OR(OR(B8="",C8="",D8="",E8=""))),"",1) -> 1 | B8: =Sheet10!B8&"] "&Sheet10!C8&"] "&Sheet10!D8 -> izeksn dqekj lSuh] v/;kid] jk m ek fo ekywrkuk | C8: =IF(Sheet10!E8="","",TEXT(Sheet10!E8,"DD-MM-YYYY")) -> 31-07-2042 | D8: =MIN(IF(C8="","",Sheet10!F8),300) -> 300 | E8: =IF(D8="","",ROUND((D8/30)*Sheet10!G8,0)) -> 1450000 | F8: =IF(E8="","",ROUND(E8*Sheet10!H8/100,0)) -> 725000 | G8: =IF(F8="","",E8+F8) -> 2175000
A9: =IF(OR(OR(OR(B9="",C9="",D9="",E9=""))),"",MAX($A$8:A8)+1) ->  | B9: =Sheet10!B9&"] "&Sheet10!C9&"] "&Sheet10!D9 -> ] ] | C9: =IF(Sheet10!E9="","",TEXT(Sheet10!E9,"DD-MM-YYYY")) ->  | D9: =IF(C9="","",Sheet10!F9) ->  | E9: =IF(D9="","",ROUND((D9/30)*Sheet10!G9,0)) ->  | F9: =IF(E9="","",ROUND(E9*Sheet10!H9/100,0)) ->  | G9: =IF(F9="","",E9+F9) -> 
A10: =IF(OR(OR(OR(B10="",C10="",D10="",E10=""))),"",MAX($A$8:A9)+1) ->  | B10: =Sheet10!B10&"] "&Sheet10!C10&"] "&Sheet10!D10 -> ] ] | C10: =IF(Sheet10!E10="","",TEXT(Sheet10!E10,"DD-MM-YYYY")) ->  | D10: =IF(C10="","",Sheet10!F10) ->  | E10: =IF(D10="","",ROUND((D10/30)*Sheet10!G10,0)) ->  | F10: =IF(E10="","",ROUND(E10*Sheet10!H10/100,0)) -> 
A11: =IF(OR(OR(OR(B11="",C11="",D11="",E11=""))),"",MAX($A$8:A10)+1) ->  | B11: =Sheet10!B11&"] "&Sheet10!C11&"] "&Sheet10!D11 -> ] ] | C11: =IF(Sheet10!E11="","",TEXT(Sheet10!E11,"DD-MM-YYYY")) ->  | D11: =IF(C11="","",Sheet10!F11) ->  | E11: =IF(D11="","",ROUND((D11/30)*Sheet10!G11,0)) ->  | F11: =IF(E11="","",ROUND(E11*Sheet10!H11/100,0)) -> 
A12: =IF(OR(OR(OR(B12="",C12="",D12="",E12=""))),"",MAX($A$8:A11)+1) ->  | B12: =Sheet10!B12&"] "&Sheet10!C12&"] "&Sheet10!D12 -> ] ] | C12: =IF(Sheet10!E12="","",TEXT(Sheet10!E12,"DD-MM-YYYY")) ->  | D12: =IF(C12="","",Sheet10!F12) ->  | E12: =IF(D12="","",ROUND((D12/30)*Sheet10!G12,0)) ->  | F12: =IF(E12="","",ROUND(E12*Sheet10!H12/100,0)) -> 
A13: =IF(OR(OR(OR(B13="",C13="",D13="",E13=""))),"",MAX($A$8:A12)+1) ->  | B13: =Sheet10!B13&"] "&Sheet10!C13&"] "&Sheet10!D13 -> ] ] | C13: =IF(Sheet10!E13="","",TEXT(Sheet10!E13,"DD-MM-YYYY")) ->  | D13: =IF(C13="","",Sheet10!F13) ->  | E13: =IF(D13="","",ROUND((D13/30)*Sheet10!G13,0)) ->  | F13: =IF(E13="","",ROUND(E13*Sheet10!H13/100,0)) -> 
A14: =IF(OR(OR(OR(B14="",C14="",D14="",E14=""))),"",MAX($A$8:A13)+1) ->  | B14: =Sheet10!B14&"] "&Sheet10!C14&"] "&Sheet10!D14 -> ] ] | C14: =IF(Sheet10!E14="","",TEXT(Sheet10!E14,"DD-MM-YYYY")) ->  | D14: =IF(C14="","",Sheet10!F14) ->  | E14: =IF(D14="","",ROUND((D14/30)*Sheet10!G14,0)) ->  | F14: =IF(E14="","",ROUND(E14*Sheet10!H14/100,0)) -> 
A15: =IF(OR(OR(OR(B15="",C15="",D15="",E15=""))),"",MAX($A$8:A14)+1) ->  | B15: =Sheet10!B15&"] "&Sheet10!C15&"] "&Sheet10!D15 -> ] ] | C15: =IF(Sheet10!E15="","",TEXT(Sheet10!E15,"DD-MM-YYYY")) ->  | D15: =IF(C15="","",Sheet10!F15) ->  | E15: =IF(D15="","",ROUND((D15/30)*Sheet10!G15,0)) ->  | F15: =IF(E15="","",ROUND(E15*Sheet10!H15/100,0)) -> 
A16: =IF(OR(OR(OR(B16="",C16="",D16="",E16=""))),"",MAX($A$8:A15)+1) ->  | B16: =Sheet10!B16&"] "&Sheet10!C16&"] "&Sheet10!D16 -> ] ] | C16: =IF(Sheet10!E16="","",TEXT(Sheet10!E16,"DD-MM-YYYY")) ->  | D16: =IF(C16="","",Sheet10!F16) ->  | E16: =IF(D16="","",ROUND((D16/30)*Sheet10!G16,0)) ->  | F16: =IF(E16="","",ROUND(E16*Sheet10!H16/100,0)) -> 
A17: =IF(OR(OR(OR(B17="",C17="",D17="",E17=""))),"",MAX($A$8:A16)+1) ->  | B17: =Sheet10!B17&"] "&Sheet10!C17&"] "&Sheet10!D17 -> ] ] | C17: =IF(Sheet10!E17="","",TEXT(Sheet10!E17,"DD-MM-YYYY")) ->  | D17: =IF(C17="","",Sheet10!F17) ->  | E17: =IF(D17="","",ROUND((D17/30)*Sheet10!G17,0)) ->  | F17: =IF(E17="","",ROUND(E17*Sheet10!H17/100,0)) -> 
E19: gLrk{kj MhMhvks e; in eqgj
A20: izfrfyfi fuEu dks lwpukFkZ ,oa vko’;d dk;Zokgh gsrq iszf"kr gSA
A21: 1- Jheku~ dks"kkf/kdkjh@midks"kkf/kdkjh -----A
A22: 2- ys[kk 'kk[kk] LFkkuh; dk;kZy;A
A23: 3- lacf/kr deZpkjh -----A
E27: gLrk{kj MhMhvks e; in eqgj

Sheet Sheet12
A1: dz-la- | B1: dk;kZy; izeq[k | C1: dk;kZy; uke | D1: dk;kZy; irk | E1: dkfeZd uke | F1: in uke | G1: inLFkkiu LFkku | H1: izFke fu;qfDr fnukad | I1: ns; ,e,lhih | J1: ns; ,e,lhih fnukad | K1: vkns'k tkjhdrkZ dk;kZy; | L1: vkns'k dzekad | M1: vkns'k fnukad | N1: ,e,lhih ls iwoZ is&ysoy | O1: ,e,lhih ls iwoZ ewy osru | P1: ,e,lhih ls Ik'pkr~ is&ysoy | Q1: tkjh vkns'k dzekad | R1: tkjh vkns'k fnukad
A2: 1 | B2: iz/kkukpk;Z | C2: jktdh; mPp ek/;fed fon~;ky; | D2: ekywrkuk ¼Fkkukxkth½ vyoj | E2: izeksn dqekj lSuh | F2: v/;kid | G2: jk m ek fo ekywrkuk | H2: 2008-01-17 | I2: 9 o"khZ; izFke | J2: 2017-01-17 | K2: ftyk f'k{kk vf/kdkjh] izkjafHkd f'k{kk] vyoj | L2: ftf'kv@vy@izkf'k@Qk&,ihih@2019@1507 | M2: 2019-01-17 | N2: 12 | O2: 40300 | P2: 13 | Q2: 1201 | R2: 2019-02-21 | S2: 9 o"khZ; izFke
A3: 2 | B3: iz/kkukpk;Z | C3: jktdh; mPp ek/;fed fon~;ky; | D3: ekywrkuk ¼Fkkukxkth½ vyoj | E3: dkfeZd | F3: v/;kid | G3: jk m ek fo ekywrkuk | H3: 2005-04-21 | I3: 18 o"khZ; f}rh; | J3: 2023-04-21 | K3: ftyk f'k{kk vf/kdkjh ¼eq[;ky;½] ek/;fed f'k{kk] vyoj | L3: ftf'kv@eq-ek-@vy@laLFkk&3@Qk&,lhih&v/;k- ,oa led{k@2023@245 | M3: 2023-06-08 | N3: 11 | O3: 55500 | P3: 12 | Q3: 1201 | R3: 2023-07-01 | S3: 18 o"khZ; f}rh;
A4: 3 | B4: iz/kkukpk;Z | C4: jktdh; mPp ek/;fed fon~;ky; | D4: ekywrkuk ¼Fkkukxkth½ vyoj | E4: deZpkjh | F4: ofj- v/;kid | G4: jk m ek fo ekywrkuk | H4: 2014-12-31 | I4: 9 o"khZ; izFke | J4: 2023-12-31 | K4: la;qDr funs’kd] Ldwy f’k{kk] t;iqj laHkkx] t;iqj | L4: lafu@Ldwy-f’k{kk@t;@laLFkk&5@,Q&501@,e,lhih@2024@28 | M4: 2024-06-19 | N4: 11 | O4: 46500 | P4: 12 | Q4: 1352 | R4: 2024-06-21 | S4: 27 o"khZ; r`rh;
A5: 4 | B5: iz/kkukpk;Z | C5: jktdh; mPp ek/;fed fon~;ky; | D5: ekywrkuk ¼Fkkukxkth½ vyoj | E5: dksbZ | F5: v/;kid ysoy&1 | G5: jk m ek fo ekywrkuk | H5: 23-03-2015 After Noon | I5: 9 o"khZ; izFke | J5: 2024-03-24 | K5: ftyk f'k{kk vf/kdkjh ¼eq[;ky;½] izkjafHkd f'k{kk] vyoj | L5: ftf'kv@eqizkf'k@vy@laLFkk&3@Qk&03 vkWuykbZu ,lhih@2024&25@881 | M5: 2024-06-24 | N5: 10 | O5: 41500 | P5: 11 | Q5: 1353 | R5: 2024-06-23
A6: 5 | B6: iz/kkukpk;Z | C6: jktdh; mPp ek/;fed fon~;ky; | D6: ekywrkuk ¼Fkkukxkth½ vyoj | E6: jke jke lk | F6: v/;kid ysoy&1 | G6: egkRek xkW/kh jk fo Mgjk | H6: Actual 28-10-2017 Notional 08-04-2015 | I6: 9 o"khZ; izFke | J6: 2024-04-08 | K6: ftyk f'k{kk vf/kdkjh ¼eq[;ky;½] izkjafHkd f'k{kk] vyoj | L6: ftf'kv@eqizkf'k@vy@laLFkk&3@Qk&03 vkWuykbZu ,lhih@2024&25@452 | M6: 2024-09-23 | N6: 10 | O6: 41500 | P6: 11 | R6: 2024-10-14
A7: 6
A8: 7
A9: 8
A10: 9
A11: 10
A12: 11
A13: 12
A14: 13
A15: 14
A16: 15

Sheet Sheet13
A1: ="dk;kZy; "&VLOOKUP($G$10,acp_data,2,0)&"] "&VLOOKUP($G$10,acp_data,3,0)&"] "&VLOOKUP($G$10,acp_data,4,0) -> dk;kZy; iz/kkukpk;Z] jktdh; mPp ek/;fed fon~;ky;] ekywrkuk ¼Fkkukxkth½ vyoj | I1: SCHEDULE-I PART-B RULE NO 5 vi &vii PAY MATRIX OF RAJASTHAN GOVT SERVANTS
A2: ="Øekad % "&IFERROR(VLOOKUP($G$10,acp_data,17,0),"") -> Øekad % 1353 | G2: ="fnukad % "&IFERROR(TEXT(VLOOKUP($G$10,acp_data,18,0),"DD-MM-YYYY"),"") -> fnukad % 23-06-2024 | I2: Exist. R.P.Band | J2: PB-1 [5200-20200] | S2: PB-2 [9300-34800] | W2: PB-3 [15600-39100] | AE2: PB-4 [37400-67000]
A3: %% dk;kZy; vkns'k %% | I3: Exist. G.P. | J3: 1700 | K3: 1750 | L3: 1900 | M3: 2000 | N3: 2400 | O3: 2400 | P3: 2400 | Q3: 2800 | R3: 2800 | S3: 3600 | T3: 4200 | U3: 4800 | V3: 5400 | W3: 5400 | X3: 6000 | Y3: 6600 | Z3: 6800 | AA3: 7200 | AB3: 7600 | AC3: 8200 | AD3: 8700 | AE3: 8900 | AF3: 9500 | AG3: 10000
A4: =" Jheku~ "&IFERROR(VLOOKUP($G$10,acp_data,11,0),"")&" ds vkns'k dzekad "&IFERROR(VLOOKUP($G$10,acp_data,12,0),"")&" fnukad "&TEXT(IFERROR(VLOOKUP($G$10,acp_data,13,0),""),"DD-MM-YYYY")&" dh vuqikyuk esa jktLFkku flfoy lsok ¼iqujhf{kr osrueku½ fu;e] 2017 ds fu;e 14 esa la’kks/ku fd;s tkus ij dk;kZy; ds fuEu dkfeZd ds }kjk "&IFERROR(VLOOKUP($G$10,acp_data,9,0),"")&" lsok iw.kZ djus ij la’kksf/kr vk’okflr dSfj;j izxfr Lohd`r fd;s tkus ij foÙk foHkkx dh vf/klwpuk dzekad ,Q-15¼1½ foÙk@fu;e@2017 ikVZ 2 fnukad 06-10-2023 ds vuqlkj fuEukuqlkj osru fu/kkZfjr dj ,rn~ }kjk Hkqxrku dh Lohd`fr iznku dh tkrh gSA"&" bUgsa fu;ekuqlkj ,e-,-lh-ih- Lohd`fr fnukad ls ,fj;lZ Hkqxrku dh Lohd`fr Hkh ,rn~ }kjk iznku dh tkrh gSA" -> Jheku~ ftyk f'k{kk vf/kdkjh ¼eq[;ky;½] izkjafHkd f'k{kk] vyoj ds vkns'k dzekad ftf'kv@eqizkf'k@vy@laLFkk&3@Qk&03 vkWuykbZu ,lhih@2024&25@881 fnukad 24-06-2024 dh vuqikyuk esa jktLFkku flfoy lsok ¼iqujhf{kr osrueku½ fu;e] 2017 ds fu;e 14 esa la’kks/ku fd;s tkus ij dk;kZy; ds fuEu dkfeZd ds }kjk 9 o"khZ; izFke lsok iw.kZ djus ij la’kksf/kr vk’okflr dSfj;j izxfr Lohd`r fd;s tkus ij foÙk foHkkx dh vf/klwpuk dzekad ,Q-15¼1½ foÙk@fu;e@2017 ikVZ 2 fnukad 06-10-2023 ds vuqlkj fuEukuqlkj osru fu/kkZfjr dj ,rn~ }kjk Hkqxrku dh Lohd`fr iznku dh tkrh gSA bUgsa fu;ekuqlkj ,e-,-lh-ih- Lohd`fr fnukad ls ,fj;lZ Hkqxrku dh Lohd`fr Hkh ,rn~ }kjk iznku dh tkrh gSA | I4: Exist. G.P.No. | J4: 2 | K4: 3 | L4: 4 | M4: 5 | N4: 9 | O4: 9A | P4: 9B | Q4: 10 | R4: 10A | S4: 11 | T4: 12 | U4: 14 | V4: 15 | W4: 15 | X4: 16 | Y4: 17 | Z4: 18 | AA4: 19 | AB4: 20 | AC4: 21 | AD4: 22 | AE4: 23 | AF4: 23A | AG4: 24
I5: Level | J5: L-1 | K5: L-2 | L5: L-3 | M5: L-4 | N5: L-5 | O5: L-6 | P5: L-7 | Q5: L-8 | R5: L-9 | S5: L-10 | T5: L-11 | U5: L-12 | V5: L-13 | W5: L-14 | X5: L-15 | Y5: L-16 | Z5: L-17 | AA5: L-18 | AB5: L-19 | AC5: L-20 | AD5: L-21 | AE5: L-22 | AF5: L-23 | AG5: L-24
I6: 1 | J6: 17700 | K6: 17900 | L6: 18200 | M6: 19200 | N6: 20800 | O6: 21500 | P6: 22400 | Q6: 26300 | R6: 28700 | S6: 33800 | T6: 37800 | U6: 44300 | V6: 53100 | W6: 56100 | X6: 60700 | Y6: 67300 | Z6: 71000 | AA6: 75300 | AB6: 79900 | AC6: 88900 | AD6: 123100 | AE6: 129700 | AF6: 145800 | AG6: 148800
I7: 2 | J7: 18200 | K7: 18400 | L7: 18700 | M7: 19800 | N7: 21400 | O7: 22100 | P7: 23100 | Q7: 27100 | R7: 29600 | S7: 34800 | T7: 38900 | U7: 45600 | V7: 54700 | W7: 57800 | X7: 62500 | Y7: 69300 | Z7: 73100 | AA7: 77600 | AB7: 82300 | AC7: 91600 | AD7: 126800 | AE7: 133600 | AF7: 150200 | AG7: 153300
I8: 3 | J8: 18700 | K8: 19000 | L8: 19300 | M8: 20400 | N8: 22000 | O8: 22800 | P8: 23800 | Q8: 27900 | R8: 30500 | S8: 35800 | T8: 40100 | U8: 47000 | V8: 56300 | W8: 59500 | X8: 64400 | Y8: 71400 | Z8: 75300 | AA8: 79900 | AB8: 84800 | AC8: 94300 | AD8: 130600 | AE8: 137600 | AF8: 154700 | AG8: 157900
I9: 4 | J9: 19300 | K9: 19600 | L9: 19900 | M9: 21000 | N9: 22700 | O9: 23500 | P9: 24500 | Q9: 28700 | R9: 31400 | S9: 36900 | T9: 41300 | U9: 48400 | V9: 58000 | W9: 61300 | X9: 66300 | Y9: 73500 | Z9: 77600 | AA9: 82300 | AB9: 87300 | AC9: 97100 | AD9: 134500 | AE9: 141700 | AF9: 159300 | AG9: 162600
A10: uke dkfeZd % | C10: =IFERROR(VLOOKUP($G$10,acp_data,5,0),"") -> dksbZ | G10: 4 | I10: 5 | J10: 19900 | K10: 20200 | L10: 20500 | M10: 21600 | N10: 23400 | O10: 24200 | P10: 25200 | Q10: 29600 | R10: 32300 | S10: 38000 | T10: 42500 | U10: 49900 | V10: 59700 | W10: 63100 | X10: 68300 | Y10: 75700 | Z10: 79900 | AA10: 84800 | AB10: 89900 | AC10: 100000 | AD10: 138500 | AE10: 146000 | AF10: 164100 | AG10: 167500
A11: orZeku /kkfjr in % | C11: =IFERROR(VLOOKUP($G$10,acp_data,6,0),"") -> v/;kid ysoy&1 | I11: 6 | J11: 20500 | K11: 20800 | L11: 21100 | M11: 22200 | N11: 24100 | O11: 24900 | P11: 26000 | Q11: 30500 | R11: 33300 | S11: 39100 | T11: 43800 | U11: 51400 | V11: 61500 | W11: 65000 | X11: 70300 | Y11: 78000 | Z11: 82300 | AA11: 87300 | AB11: 92600 | AC11: 103000 | AD11: 142700 | AE11: 150400 | AF11: 169000 | AG11: 172500
A12: inLFkkiu LFkku % | C12: =IFERROR(VLOOKUP($G$10,acp_data,7,0),"") -> jk m ek fo ekywrkuk | I12: 7 | J12: 21100 | K12: 21400 | L12: 21700 | M12: 22900 | N12: 24800 | O12: 25600 | P12: 26800 | Q12: 31400 | R12: 34300 | S12: 40300 | T12: 45100 | U12: 52900 | V12: 63300 | W12: 67000 | X12: 72400 | Y12: 80300 | Z12: 84800 | AA12: 89900 | AB12: 95400 | AC12: 106100 | AD12: 147000 | AE12: 154900 | AF12: 174100 | AG12: 177700
A13: izFke fu;qfDr fnukad % | C13: =TEXT(IFERROR(VLOOKUP($G$10,acp_data,8,0),""),"DD-MM-YYYY") -> 23-03-2015 After Noon | I13: 8 | J13: 21700 | K13: 22000 | L13: 22400 | M13: 23600 | N13: 25500 | O13: 26400 | P13: 27600 | Q13: 32300 | R13: 35300 | S13: 41500 | T13: 46500 | U13: 54500 | V13: 65200 | W13: 69000 | X13: 74600 | Y13: 82700 | Z13: 87300 | AA13: 92600 | AB13: 98300 | AC13: 109300 | AD13: 151400 | AE13: 159500 | AF13: 179300 | AG13: 183000
A14: ,e-,-lh-ih- ns; fnukad % | C14: =TEXT(IFERROR(VLOOKUP($G$10,acp_data,10,0),""),"DD-MM-YYYY") -> 24-03-2024 | I14: 9 | J14: 22400 | K14: 22700 | L14: 23100 | M14: 24300 | N14: 26300 | O14: 27200 | P14: 28400 | Q14: 33300 | R14: 36400 | S14: 42700 | T14: 47900 | U14: 56100 | V14: 67200 | W14: 71100 | X14: 76800 | Y14: 85200 | Z14: 89900 | AA14: 95400 | AB14: 101200 | AC14: 112600 | AD14: 155900 | AE14: 164300 | AF14: 184700 | AG14: 188500
A15: =",e,lhih Lohd`rh fnukad "&C14& " iwoZ osru" -> ,e,lhih Lohd`rh fnukad 24-03-2024 iwoZ osru | D15: =",e,lhih Lohd`rh fnukad "&C14& " i’pkr~ osru" -> ,e,lhih Lohd`rh fnukad 24-03-2024 i’pkr~ osru | G15: vkxkeh osru o`f) fnukad | I15: 10 | J15: 23100 | K15: 23400 | L15: 23800 | M15: 25000 | N15: 27100 | O15: 28000 | P15: 29300 | Q15: 34300 | R15: 37500 | S15: 44000 | T15: 49300 | U15: 57800 | V15: 69200 | W15: 73200 | X15: 79100 | Y15: 87800 | Z15: 92600 | AA15: 98300 | AB15: 104200 | AC15: 116000 | AD15: 160600 | AE15: 169200 | AF15: 190200 | AG15: 194200
A16: is&cSaM | B16: is&ysoy | C16: osru | D16: is&cSaM | E16: is&ysoy | F16: osru | I16: 11 | J16: 23800 | K16: 24100 | L16: 24500 | M16: 25800 | N16: 27900 | O16: 28800 | P16: 30200 | Q16: 35300 | R16: 38600 | S16: 45300 | T16: 50800 | U16: 59500 | V16: 71300 | W16: 75400 | X16: 81500 | Y16: 90400 | Z16: 95400 | AA16: 101200 | AB16: 107300 | AC16: 119500 | AD16: 165400 | AE16: 174300 | AF16: 195900 | AG16: 200000
A17: =IF(AND(B17>0,B17<10),"PB-1",IF(AND(B17>9,B17<14),"PB-2",IF(AND(B17>13,B17<22),"PB-3",IF(AND(B17>21,B17<25),"PB-4","")))) -> PB-2 | B17: =IFERROR(VLOOKUP($G$10,acp_data,14,0),"") -> 10 | C17: =IFERROR(VLOOKUP($G$10,acp_data,15,0),"") -> 41500 | D17: =IF(AND(E17>0,E16<10),"PB-1",IF(AND(E17>9,E17<14),"PB-2",IF(AND(E17>13,E17<22),"PB-3",IF(AND(E17>21,E17<25),"PB-4","")))) -> PB-2 | E17: =IFERROR(VLOOKUP($G$10,acp_data,16,0),"") -> 11 | F17: =SUM(J46:AG46) -> 43800 | G17: =IFERROR(IF(MONTH(C14)<7,"01-07-"&YEAR(C14),"01-07-"&YEAR(C14)+1),"") -> 01-07-2024 | I17: 12 | J17: 24500 | K17: 24800 | L17: 25200 | M17: 26600 | N17: 28700 | O17: 29700 | P17: 31100 | Q17: 36400 | R17: 39800 | S17: 46700 | T17: 52300 | U17: 61300 | V17: 73400 | W17: 77700 | X17: 83900 | Y17: 93100 | Z17: 98300 | AA17: 104200 | AB17: 110500 | AC17: 123100 | AD17: 170400 | AE17: 179500 | AF17: 201800 | AG17: 206000
I18: 13 | J18: 25200 | K18: 25500 | L18: 26000 | M18: 27400 | N18: 29600 | O18: 30600 | P18: 32000 | Q18: 37500 | R18: 41000 | S18: 48100 | T18: 53900 | U18: 63100 | V18: 75600 | W18: 80000 | X18: 86400 | Y18: 95900 | Z18: 101200 | AA18: 107300 | AB18: 113800 | AC18: 126800 | AD18: 175500 | AE18: 184900 | AF18: 207900 | AG18: 212200
F19: =IFERROR(VLOOKUP($G$10,acp_data,2,0),"") -> iz/kkukpk;Z | I19: 14 | J19: 26000 | K19: 26300 | L19: 26800 | M19: 28200 | N19: 30500 | O19: 31500 | P19: 33000 | Q19: 38600 | R19: 42200 | S19: 49500 | T19: 55500 | U19: 65000 | V19: 77900 | W19: 82400 | X19: 89000 | Y19: 98800 | Z19: 104200 | AA19: 110500 | AB19: 117200 | AC19: 130600 | AD19: 180800 | AE19: 190400 | AF19: 214100 | AG19: 218600
F20: =IFERROR(VLOOKUP($G$10,acp_data,3,0),"") -> jktdh; mPp ek/;fed fon~;ky; | I20: 15 | J20: 26800 | K20: 27100 | L20: 27600 | M20: 29000 | N20: 31400 | O20: 32400 | P20: 34000 | Q20: 39800 | R20: 43500 | S20: 51000 | T20: 57200 | U20: 67000 | V20: 80200 | W20: 84900 | X20: 91700 | Y20: 101800 | Z20: 107300 | AA20: 113800 | AB20: 120700 | AC20: 134500 | AD20: 186200 | AE20: 196100
F21: =IFERROR(VLOOKUP($G$10,acp_data,4,0),"") -> ekywrkuk ¼Fkkukxkth½ vyoj | I21: 16 | J21: 27600 | K21: 27900 | L21: 28400 | M21: 29900 | N21: 32300 | O21: 33400 | P21: 35000 | Q21: 41000 | R21: 44800 | S21: 52500 | T21: 58900 | U21: 69000 | V21: 82600 | W21: 87400 | X21: 94500 | Y21: 104900 | Z21: 110500 | AA21: 117200 | AB21: 124300 | AC21: 138500 | AD21: 191800 | AE21: 202000
A22: izfrfyfi fuEu dks lwpukFkZ ,oa vko’;d dk;Zokgh gsrq iszf"kr gSA | I22: 17 | J22: 28400 | K22: 28700 | L22: 29300 | M22: 30800 | N22: 33300 | O22: 34400 | P22: 36100 | Q22: 42200 | R22: 46100 | S22: 54100 | T22: 60700 | U22: 71100 | V22: 85100 | W22: 90000 | X22: 97300 | Y22: 108000 | Z22: 113800 | AA22: 120700 | AB22: 128000 | AC22: 142700 | AD22: 197600 | AE22: 208100
A23: ="1- Jheku~ "&IFERROR(VLOOKUP($G$10,acp_data,11,0),"")&"A" -> 1- Jheku~ ftyk f'k{kk vf/kdkjh ¼eq[;ky;½] izkjafHkd f'k{kk] vyojA | I23: 18 | J23: 29300 | K23: 29600 | L23: 30200 | M23: 31700 | N23: 34300 | O23: 35400 | P23: 37200 | Q23: 43500 | R23: 47500 | S23: 55700 | T23: 62500 | U23: 73200 | V23: 87700 | W23: 92700 | X23: 100200 | Y23: 111200 | Z23: 117200 | AA23: 124300 | AB23: 131800 | AC23: 147000 | AD23: 203500
A24: 2- Jheku~ dks"kkf/kdkjh@mi dks"kkf/kdkjh ------------------------------A | I24: 19 | J24: 30200 | K24: 30500 | L24: 31100 | M24: 32700 | N24: 35300 | O24: 36500 | P24: 38300 | Q24: 44800 | R24: 48900 | S24: 57400 | T24: 64400 | U24: 75400 | V24: 90300 | W24: 95500 | X24: 103200 | Y24: 114500 | Z24: 120700 | AA24: 128000 | AB24: 135800 | AC24: 151400
A25: 3- ys[kk 'kk[kk] LFkkuh; dk;kZy;A | I25: 20 | J25: 31100 | K25: 31400 | L25: 32000 | M25: 33700 | N25: 36400 | O25: 37600 | P25: 39400 | Q25: 46100 | R25: 50400 | S25: 59100 | T25: 66300 | U25: 77700 | V25: 93000 | W25: 98400 | X25: 106300 | Y25: 117900 | Z25: 124300 | AA25: 131800 | AB25: 139900 | AC25: 155900
A26: ="4- lacaf/kr dkfeZd % "&C10&"] "&C11&"A" -> 4- lacaf/kr dkfeZd % dksbZ ] v/;kid ysoy&1A | I26: 21 | J26: 32000 | K26: 32300 | L26: 33000 | M26: 34700 | N26: 37500 | O26: 38700 | P26: 40600 | Q26: 47500 | R26: 51900 | S26: 60900 | T26: 68300 | U26: 80000 | V26: 95800 | W26: 101400 | X26: 109500 | Y26: 121400 | Z26: 128000 | AA26: 135800 | AB26: 144100 | AC26: 160600
I27: 22 | J27: 33000 | K27: 33300 | L27: 34000 | M27: 35700 | N27: 38600 | O27: 39900 | P27: 41800 | Q27: 48900 | R27: 53500 | S27: 62700 | T27: 70300 | U27: 82400 | V27: 98700 | W27: 104400 | X27: 112800 | Y27: 125000 | Z27: 131800 | AA27: 139900 | AB27: 148400 | AC27: 165400
F28: =F19 -> iz/kkukpk;Z | I28: 23 | J28: 34000 | K28: 34300 | L28: 35000 | M28: 36800 | N28: 39800 | O28: 41100 | P28: 43100 | Q28: 50400 | R28: 55100 | S28: 64600 | T28: 72400 | U28: 84900 | V28: 101700 | W28: 107500 | X28: 116200 | Y28: 128800 | Z28: 135800 | AA28: 144100 | AB28: 152900 | AC28: 170400
F29: =F20 -> jktdh; mPp ek/;fed fon~;ky; | I29: 24 | J29: 35000 | K29: 35300 | L29: 36100 | M29: 37900 | N29: 41000 | O29: 42300 | P29: 44400 | Q29: 51900 | R29: 56800 | S29: 66500 | T29: 74600 | U29: 87400 | V29: 104800 | W29: 110700 | X29: 119700 | Y29: 132700 | Z29: 139900 | AA29: 148400 | AB29: 157500 | AC29: 175500
F30: =F21 -> ekywrkuk ¼Fkkukxkth½ vyoj | I30: 25 | J30: 36100 | K30: 36400 | L30: 37200 | M30: 39000 | N30: 42200 | O30: 43600 | P30: 45700 | Q30: 53500 | R30: 58500 | S30: 68500 | T30: 76800 | U30: 90000 | V30: 107900 | W30: 114000 | X30: 123300 | Y30: 136700 | Z30: 144100 | AA30: 152900 | AB30: 162200 | AC30: 180800
I31: 26 | J31: 37200 | K31: 37500 | L31: 38300 | M31: 40200 | N31: 43500 | O31: 44900 | P31: 47100 | Q31: 55100 | R31: 60300 | S31: 70600 | T31: 79100 | U31: 92700 | V31: 111100 | W31: 117400 | X31: 127000 | Y31: 140800 | Z31: 148400 | AA31: 157500 | AB31: 167100 | AC31: 186200
I32: 27 | J32: 38300 | K32: 38600 | L32: 39400 | M32: 41400 | N32: 44800 | O32: 46200 | P32: 48500 | Q32: 56800 | R32: 62100 | S32: 72700 | T32: 81500 | U32: 95500 | V32: 114400 | W32: 120900 | X32: 130800 | Y32: 145000 | Z32: 152900 | AA32: 162200 | AB32: 172100 | AC32: 191800
I33: 28 | J33: 39400 | K33: 39800 | L33: 40600 | M33: 42600 | N33: 46100 | O33: 47600 | P33: 50000 | Q33: 58500 | R33: 64000 | S33: 74900 | T33: 83900 | U33: 98400 | V33: 117800 | W33: 124500 | X33: 134700 | Y33: 149400 | Z33: 157500 | AA33: 167100 | AB33: 177300 | AC33: 197600
I34: 29 | J34: 40600 | K34: 41000 | L34: 41800 | M34: 43900 | N34: 47500 | O34: 49000 | P34: 51500 | Q34: 60300 | R34: 65900 | S34: 77100 | T34: 86400 | U34: 101400 | V34: 121300 | W34: 128200 | X34: 138700 | Y34: 153900 | Z34: 162200 | AA34: 172100 | AB34: 182600 | AC34: 203500
I35: 30 | J35: 41800 | K35: 42200 | L35: 43100 | M35: 45200 | N35: 48900 | O35: 50500 | P35: 53000 | Q35: 62100 | R35: 67900 | S35: 79400 | T35: 89000 | U35: 104400 | V35: 124900 | W35: 132000 | X35: 142900 | Y35: 158500 | Z35: 167100 | AA35: 177300 | AB35: 188100
I36: 31 | J36: 43100 | K36: 43500 | L36: 44400 | M36: 46600 | N36: 50400 | O36: 52000 | P36: 54600 | Q36: 64000 | R36: 69900 | S36: 81800 | T36: 91700 | U36: 107500 | V36: 128600 | W36: 136000 | X36: 147200 | Y36: 163300 | Z36: 172100 | AA36: 182600 | AB36: 193700
I37: 32 | J37: 44400 | K37: 44800 | L37: 45700 | M37: 48000 | N37: 51900 | O37: 53600 | P37: 56200 | Q37: 65900 | R37: 72000 | S37: 84300 | T37: 94500 | U37: 110700 | V37: 132500 | W37: 140100 | X37: 151600 | Y37: 168200 | Z37: 177300 | AA37: 188100 | AB37: 199500
I38: 33 | J38: 45700 | K38: 46100 | L38: 47100 | M38: 49400 | N38: 53500 | O38: 55200 | P38: 57900 | Q38: 67900 | R38: 74200 | S38: 86800 | T38: 97300 | U38: 114000 | V38: 136500 | W38: 144300 | X38: 156100 | Y38: 173200 | Z38: 182600 | AA38: 193700
I39: 34 | J39: 47100 | K39: 47500 | L39: 48500 | M39: 50900 | N39: 55100 | O39: 56900 | P39: 59600 | Q39: 69900 | R39: 76400 | S39: 89400 | T39: 100200 | U39: 117400 | V39: 140600 | W39: 148600 | X39: 160800 | Y39: 178400 | Z39: 188100 | AA39: 199500
I40: 35 | J40: 48500 | K40: 48900 | L40: 50000 | M40: 52400 | N40: 56800 | O40: 58600 | P40: 61400 | Q40: 72000 | R40: 78700 | S40: 92100 | T40: 103200 | U40: 120900 | V40: 144800 | W40: 153100 | X40: 165600 | Y40: 183800 | Z40: 193700
I41: 36 | J41: 50000 | K41: 50400 | L41: 51500 | M41: 54000 | N41: 58500 | O41: 60400 | P41: 63200 | Q41: 74200 | R41: 81100 | S41: 94900 | T41: 106300 | U41: 124500 | V41: 149100 | W41: 157700 | X41: 170600 | Y41: 189300 | Z41: 199500
I42: 37 | J42: 51500 | K42: 51900 | L42: 53000 | M42: 55600 | N42: 60300 | O42: 62200 | P42: 65100 | Q42: 76400 | R42: 83500 | S42: 97700 | T42: 109500 | U42: 128200 | V42: 153600 | W42: 162400 | X42: 175700 | Y42: 195000
I43: 38 | J43: 53000 | K43: 53500 | L43: 54600 | M43: 57300 | N43: 62100 | O43: 64100 | P43: 67100 | Q43: 78700 | R43: 86000 | S43: 100600 | T43: 112800 | U43: 132000 | V43: 158200 | W43: 167300 | X43: 181000
I44: 39 | J44: 54600 | K44: 55100 | L44: 56200 | M44: 59000 | N44: 64000 | O44: 66000 | P44: 69100 | Q44: 81100 | R44: 88600 | S44: 103600 | T44: 116200 | U44: 136000 | V44: 162900 | W44: 172300 | X44: 186400
I45: 40 | J45: 56200 | K45: 56800 | L45: 57900 | M45: 60800 | N45: 65900 | O45: 68000 | P45: 71200 | Q45: 83500 | R45: 91300 | S45: 106700 | T45: 119700 | U45: 140100 | V45: 167800 | W45: 177500 | X45: 192000
J46: =IF($E$17=J5,INDEX(J6:J45,MATCH(TRUE,INDEX(J6:J45>MROUND($C$17*103%,100),0),0))) -> FALSE | K46: FALSE | L46: FALSE | M46: FALSE | N46: FALSE | O46: FALSE | P46: FALSE | Q46: FALSE | R46: FALSE | S46: FALSE | T46: 43800 | U46: FALSE | V46: FALSE | W46: FALSE | X46: FALSE | Y46: FALSE | Z46: FALSE | AA46: FALSE | AB46: FALSE | AC46: FALSE | AD46: FALSE | AE46: FALSE | AF46: FALSE | AG46: FALSE

Sheet Sheet14
A1: vkgj.k ,oa forj.k vf/kdkjh dk;kZy;↓
A2: jktdh; mPp ek/;fed fon~;ky; ekywrkuk ¼Fkkukxkth½ vyoj
A3: Lohd`fr vkns'k dzekad↓
A4: 2012
A5: Lohd`fr vkns'k fnukad↓
A6: 2023-10-14
A7: deZpkjh dk uke↓
A8: izeksn dqekj lSuh
A9: in uke↓
A10: v/;kid
A11: inLFkkiu LFkku↓
A12: jktdh; mPp ek/;fed fon~;ky; ekywrkuk ¼Fkkukxkth½ vyoj
A13: Ø- la- | B13: vkns'k tkjhdrkZ vf/kdkjh@dk;kZy; | C13: vkns'k dzekad | D13: vkns'k fnukad | E13: dk;Z fooj.k | F13: dk;Z vof/k
F14: ls | G14: rd
A15: 1 | B15: ,lMh,e | C15: 2012 | D15: 2023-04-05 | E15: vjh | F15: 2023-12-01 | G15: 2023-12-13
A16: 2 | B16: ,lMh,e | C16: 2013 | D16: 2023-04-06 | E16: vjh | F16: 2023-12-02 | G16: 2023-12-14
A17: 3 | B17: ,lMh,e | C17: 2014 | D17: 2023-04-07 | E17: vjh | F17: 2023-12-03 | G17: 2023-12-15
A18: 4 | B18: ,lMh,e | C18: 2015 | D18: 2023-04-08 | E18: vjh | F18: 2023-12-04 | G18: 2023-12-16
A19: 5 | B19: ,lMh,e | C19: 2016 | D19: 2023-04-09 | E19: vjh | F19: 2023-12-05 | G19: 2023-12-17
A20: 6 | B20: ,lMh,e | C20: 2017 | D20: 2023-04-10 | E20: vjh | F20: 2023-12-06 | G20: 2023-12-18
A21: 7 | B21: ,lMh,e | C21: 2018 | D21: 2023-04-11 | E21: vjh | F21: 2023-12-07 | G21: 2023-12-19
A22: 8 | B22: ,lMh,e | C22: 2019 | D22: 2023-04-12 | E22: vjh | F22: 2023-12-08 | G22: 2023-12-20
A23: 9 | B23: ,lMh,e | C23: 2020 | D23: 2023-04-13 | E23: vjh | F23: 2023-12-09 | G23: 2023-12-21
A24: 10 | B24: ,lMh,e | C24: 2021 | D24: 2023-04-14 | E24: vjh | F24: 2023-12-10 | G24: 2023-12-22

Sheet Sheet15
A1: ="dk;kZy; "&Sheet14!A2 -> dk;kZy; jktdh; mPp ek/;fed fon~;ky; ekywrkuk ¼Fkkukxkth½ vyoj
A2: ="dzekad % "&Sheet14!A4 -> dzekad % 2012 | I2: ="fnukad % "&IF(Sheet14!A6="","",TEXT(Sheet14!A6,"DD-MM-YYYY")) -> fnukad % 14-10-2023
A4: dk;kZy; vkns'k
A5: =" bl dk;kZy; ds deZpkjh Jh "&Sheet14!A8&"] "&Sheet14!A10&"] "&Sheet14!A12&" ds }kjk fofHkUUk vodk'k vof/k;ksa es fd;s x;s dk;kssZa dh ,ot esa jktLFkku flfoy lsok fu;e 92ch ds vuqlkj izfr rhu fnol ij ,d mikftZr vodk'k ykHk fn;s tkus ij fuEukuqlkj buds mikftZr [kkrsa esa tksMs tkus dh Lohd`fr iznku dh tkrh gSA " -> bl dk;kZy; ds deZpkjh Jh izeksn dqekj lSuh] v/;kid] jktdh; mPp ek/;fed fon~;ky; ekywrkuk ¼Fkkukxkth½ vyoj ds }kjk fofHkUUk vodk'k vof/k;ksa es fd;s x;s dk;kssZa dh ,ot esa jktLFkku flfoy lsok fu;e 92ch ds vuqlkj izfr rhu fnol ij ,d mikftZr vodk'k ykHk fn;s tkus ij fuEukuqlkj buds mikftZr [kkrsa esa tksMs tkus dh Lohd`fr iznku dh tkrh gSA
A6: Ø- la- | B6: vkns'k tkjhdrkZ vf/kdkjh@dk;kZy; | C6: vkns'k dzekad | D6: vkns'k fnukad | E6: dk;Z fooj.k | F6: dk;Z vof/k | I6: ns; mikftZr vodk'k
F7: ls | G7: rd | H7: dqy fnol
A8: =IF(OR(OR(OR(B8="",C8="",E8="",F8=""))),"",1) -> 1 | B8: =IF(Sheet14!B15="","",Sheet14!B15) -> ,lMh,e | C8: =IF(Sheet14!C15="","",Sheet14!C15) -> 2012 | D8: =IF(Sheet14!D15="","",TEXT(Sheet14!D15,"DD-MM-YYYY")) -> 05-04-2023 | E8: =IF(Sheet14!E15="","",Sheet14!E15) -> vjh | F8: =IF(Sheet14!F15="","",TEXT(Sheet14!F15,"DD-MM-YYYY")) -> 01-12-2023 | G8: =IF(Sheet14!G15="","",TEXT(Sheet14!G15,"DD-MM-YYYY")) -> 13-12-2023 | H8: =_xlfn.DAYS(G8,F8)+1 -> 13 | I8: =ROUNDDOWN(H8/3,0) -> 4
A9: =IF(OR(OR(OR(B9="",C9="",E9="",F9=""))),"",MAX($A$8:A8)+1) -> 2 | B9: =IF(Sheet14!B16="","",Sheet14!B16) -> ,lMh,e | C9: =IF(Sheet14!C16="","",Sheet14!C16) -> 2013 | D9: =IF(Sheet14!D16="","",TEXT(Sheet14!D16,"DD-MM-YYYY")) -> 06-04-2023 | E9: =IF(Sheet14!E16="","",Sheet14!E16) -> vjh | F9: =IF(Sheet14!F16="","",TEXT(Sheet14!F16,"DD-MM-YYYY")) -> 02-12-2023 | G9: =IF(Sheet14!G16="","",TEXT(Sheet14!G16,"DD-MM-YYYY")) -> 14-12-2023 | H9: =_xlfn.DAYS(G9,F9)+1 -> 13 | I9: =ROUNDDOWN(H9/3,0) -> 4
A10: =IF(OR(OR(OR(B10="",C10="",E10="",F10=""))),"",MAX($A$8:A9)+1) -> 3 | B10: =IF(Sheet14!B17="","",Sheet14!B17) -> ,lMh,e | C10: =IF(Sheet14!C17="","",Sheet14!C17) -> 2014 | D10: =IF(Sheet14!D17="","",TEXT(Sheet14!D17,"DD-MM-YYYY")) -> 07-04-2023 | E10: =IF(Sheet14!E17="","",Sheet14!E17) -> vjh | F10: =IF(Sheet14!F17="","",TEXT(Sheet14!F17,"DD-MM-YYYY")) -> 03-12-2023 | G10: =IF(Sheet14!G17="","",TEXT(Sheet14!G17,"DD-MM-YYYY")) -> 15-12-2023 | H10: 13 | I10: 4
A11: =IF(OR(OR(OR(B11="",C11="",E11="",F11=""))),"",MAX($A$8:A10)+1) -> 4 | B11: =IF(Sheet14!B18="","",Sheet14!B18) -> ,lMh,e | C11: =IF(Sheet14!C18="","",Sheet14!C18) -> 2015 | D11: =IF(Sheet14!D18="","",TEXT(Sheet14!D18,"DD-MM-YYYY")) -> 08-04-2023 | E11: =IF(Sheet14!E18="","",Sheet14!E18) -> vjh | F11: =IF(Sheet14!F18="","",TEXT(Sheet14!F18,"DD-MM-YYYY")) -> 04-12-2023 | G11: =IF(Sheet14!G18="","",TEXT(Sheet14!G18,"DD-MM-YYYY")) -> 16-12-2023 | H11: 13 | I11: 4
A12: =IF(OR(OR(OR(B12="",C12="",E12="",F12=""))),"",MAX($A$8:A11)+1) -> 5 | B12: =IF(Sheet14!B19="","",Sheet14!B19) -> ,lMh,e | C12: =IF(Sheet14!C19="","",Sheet14!C19) -> 2016 | D12: =IF(Sheet14!D19="","",TEXT(Sheet14!D19,"DD-MM-YYYY")) -> 09-04-2023 | E12: =IF(Sheet14!E19="","",Sheet14!E19) -> vjh | F12: =IF(Sheet14!F19="","",TEXT(Sheet14!F19,"DD-MM-YYYY")) -> 05-12-2023 | G12: =IF(Sheet14!G19="","",TEXT(Sheet14!G19,"DD-MM-YYYY")) -> 17-12-2023 | H12: 13 | I12: 4
A13: =IF(OR(OR(OR(B13="",C13="",E13="",F13=""))),"",MAX($A$8:A12)+1) -> 6 | B13: =IF(Sheet14!B20="","",Sheet14!B20) -> ,lMh,e | C13: =IF(Sheet14!C20="","",Sheet14!C20) -> 2017 | D13: =IF(Sheet14!D20="","",TEXT(Sheet14!D20,"DD-MM-YYYY")) -> 10-04-2023 | E13: =IF(Sheet14!E20="","",Sheet14!E20) -> vjh | F13: =IF(Sheet14!F20="","",TEXT(Sheet14!F20,"DD-MM-YYYY")) -> 06-12-2023 | G13: =IF(Sheet14!G20="","",TEXT(Sheet14!G20,"DD-MM-YYYY")) -> 18-12-2023 | H13: 13 | I13: 4
A14: =IF(OR(OR(OR(B14="",C14="",E14="",F14=""))),"",MAX($A$8:A13)+1) -> 7 | B14: =IF(Sheet14!B21="","",Sheet14!B21) -> ,lMh,e | C14: =IF(Sheet14!C21="","",Sheet14!C21) -> 2018 | D14: =IF(Sheet14!D21="","",TEXT(Sheet14!D21,"DD-MM-YYYY")) -> 11-04-2023 | E14: =IF(Sheet14!E21="","",Sheet14!E21) -> vjh | F14: =IF(Sheet14!F21="","",TEXT(Sheet14!F21,"DD-MM-YYYY")) -> 07-12-2023 | G14: =IF(Sheet14!G21="","",TEXT(Sheet14!G21,"DD-MM-YYYY")) -> 19-12-2023 | H14: 13 | I14: 4
A15: =IF(OR(OR(OR(B15="",C15="",E15="",F15=""))),"",MAX($A$8:A14)+1) -> 8 | B15: =IF(Sheet14!B22="","",Sheet14!B22) -> ,lMh,e | C15: =IF(Sheet14!C22="","",Sheet14!C22) -> 2019 | D15: =IF(Sheet14!D22="","",TEXT(Sheet14!D22,"DD-MM-YYYY")) -> 12-04-2023 | E15: =IF(Sheet14!E22="","",Sheet14!E22) -> vjh | F15: =IF(Sheet14!F22="","",TEXT(Sheet14!F22,"DD-MM-YYYY")) -> 08-12-2023 | G15: =IF(Sheet14!G22="","",TEXT(Sheet14!G22,"DD-MM-YYYY")) -> 20-12-2023 | H15: 13 | I15: 4
A16: =IF(OR(OR(OR(B16="",C16="",E16="",F16=""))),"",MAX($A$8:A15)+1) -> 9 | B16: =IF(Sheet14!B23="","",Sheet14!B23) -> ,lMh,e | C16: =IF(Sheet14!C23="","",Sheet14!C23) -> 2020 | D16: =IF(Sheet14!D23="","",TEXT(Sheet14!D23,"DD-MM-YYYY")) -> 13-04-2023 | E16: =IF(Sheet14!E23="","",Sheet14!E23) -> vjh | F16: =IF(Sheet14!F23="","",TEXT(Sheet14!F23,"DD-MM-YYYY")) -> 09-12-2023 | G16: =IF(Sheet14!G23="","",TEXT(Sheet14!G23,"DD-MM-YYYY")) -> 21-12-2023 | H16: 13 | I16: 4
A17: =IF(OR(OR(OR(B17="",C17="",E17="",F17=""))),"",MAX($A$8:A16)+1) -> 10 | B17: =IF(Sheet14!B24="","",Sheet14!B24) -> ,lMh,e | C17: =IF(Sheet14!C24="","",Sheet14!C24) -> 2021 | D17: =IF(Sheet14!D24="","",TEXT(Sheet14!D24,"DD-MM-YYYY")) -> 14-04-2023 | E17: =IF(Sheet14!E24="","",Sheet14!E24) -> vjh | F17: =IF(Sheet14!F24="","",TEXT(Sheet14!F24,"DD-MM-YYYY")) -> 10-12-2023 | G17: =IF(Sheet14!G24="","",TEXT(Sheet14!G24,"DD-MM-YYYY")) -> 22-12-2023 | H17: 13 | I17: 4
F19: gLrk{kj MhMhvks e; in eqgj
A20: izfrfyfi fuEu dks lwpukFkZ ,oa vko’;d dk;Zokgh gsrq iszf"kr gSA
A21: 1- Jheku~ midks"kkf/kdkjh] midks"k dk;kZy;-------------------A
A22: 2- ys[kk 'kk[kk] LFkkuh; dk;kZy;A
A23: ="3- lacaf/kr deZpkjh Jh@Jherh "&Sheet14!$A$8&"] "&Sheet14!$A$10 -> 3- lacaf/kr deZpkjh Jh@Jherh izeksn dqekj lSuh] v/;kid
F25: gLrk{kj MhMhvks e; in eqgj
